Workbook

Sheet 成绩排名
A1: 织金县2025年“特岗计划”教师招聘 面试成绩
A2: 序号 | B2: 准考证号 | C2: 面试成绩
A3: 1 | B3: 20250505015416 | C3: 91.86
A4: 2 | B4: 20250505022716 | C4: 91.84
A5: 3 | B5: 20250505010218 | C5: 91.58
A6: 4 | B6: 20250505010314 | C6: 91.32
A7: 5 | B7: 20250505021521 | C7: 91.26
A8: 6 | B8: 20250505014017 | C8: 90.90
A9: 7 | B9: 20250505013512 | C9: 90.28
A10: 8 | B10: 20250505010514 | C10: 90.26
A11: 9 | B11: 20250505020710 | C11: 90.20
A12: 10 | B12: 20250505021824 | C12: 90.18
A13: 11 | B13: 20250505012909 | C13: 90.16
A14: 12 | B14: 20250505013013 | C14: 90.02
A15: 13 | B15: 20250505010220 | C15: 89.94
A16: 14 | B16: 20250505011603 | C16: 89.92
A17: 15 | B17: 20250505010701 | C17: 89.72
A18: 16 | B18: 20250505014515 | C18: 89.62
A19: 17 | B19: 20250505032217 | C19: 89.58
A20: 18 | B20: 20250505011411 | C20: 89.56
A21: 19 | B21: 20250505011014 | C21: 89.56
A22: 20 | B22: 20250505021913 | C22: 89.50
A23: 21 | B23: 20250505017523 | C23: 89.46
A24: 22 | B24: 20250505032203 | C24: 89.40
A25: 23 | B25: 20250505020827 | C25: 89.40
A26: 24 | B26: 20250505012410 | C26: 89.20
A27: 25 | B27: 20250505020305 | C27: 89.18
A28: 26 | B28: 20250505011003 | C28: 89.18
A29: 27 | B29: 20250505011013 | C29: 89.14
A30: 28 | B30: 20250505035001 | C30: 89.08
A31: 29 | B31: 20250505015010 | C31: 89.02
A32: 30 | B32: 20250505032726 | C32: 89.00
A33: 31 | B33: 20250505022612 | C33: 89.00
A34: 32 | B34: 20250505012607 | C34: 88.94
A35: 33 | B35: 20250505010328 | C35: 88.90
A36: 34 | B36: 20250505020625 | C36: 88.82
A37: 35 | B37: 20250505020918 | C37: 88.72
A38: 36 | B38: 20250505032814 | C38: 88.66
A39: 37 | B39: 20250505015430 | C39: 88.60
A40: 38 | B40: 20250505011327 | C40: 88.52
A41: 39 | B41: 20250505030328 | C41: 88.48
A42: 40 | B42: 20250505014710 | C42: 88.42
A43: 41 | B43: 20250505014910 | C43: 88.40
A44: 42 | B44: 20250505011723 | C44: 88.38
A45: 43 | B45: 20250505020810 | C45: 88.38
A46: 44 | B46: 20250505035223 | C46: 88.34
A47: 45 | B47: 20250505022705 | C47: 88.26
A48: 46 | B48: 20250505033301 | C48: 88.24
A49: 47 | B49: 20250505014417 | C49: 88.22
A50: 48 | B50: 20250505011827 | C50: 88.18
A51: 49 | B51: 20250505035201 | C51: 88.16
A52: 50 | B52: 20250505016303 | C52: 88.12
A53: 51 | B53: 20250505016309 | C53: 88.10
A54: 52 | B54: 20250505015119 | C54: 88.08
A55: 53 | B55: 20250505016523 | C55: 88.06
A56: 54 | B56: 20250505034502 | C56: 88.06
A57: 55 | B57: 20250505032903 | C57: 88.06
A58: 56 | B58: 20250505023720 | C58: 88.06
A59: 57 | B59: 20250505020506 | C59: 88.02
A60: 58 | B60: 20250505033611 | C60: 87.96
A61: 59 | B61: 20250505010609 | C61: 87.88
A62: 60 | B62: 20250505014027 | C62: 87.86
A63: 61 | B63: 20250505030603 | C63: 87.86
A64: 62 | B64: 20250505032519 | C64: 87.84
A65: 63 | B65: 20250505034424 | C65: 87.72
A66: 64 | B66: 20250505017020 | C66: 87.70
A67: 65 | B67: 20250505022114 | C67: 87.70
A68: 66 | B68: 20250505035320 | C68: 87.68
A69: 67 | B69: 20250505010320 | C69: 87.64
A70: 68 | B70: 20250505012929 | C70: 87.58
A71: 69 | B71: 20250505016711 | C71: 87.54
A72: 70 | B72: 20250505017201 | C72: 87.48
A73: 71 | B73: 20250505017917 | C73: 87.46
A74: 72 | B74: 20250505020825 | C74: 87.44
A75: 73 | B75: 20250505030108 | C75: 87.44
A76: 74 | B76: 20250505016903 | C76: 87.42
A77: 75 | B77: 20250505014316 | C77: 87.40
A78: 76 | B78: 20250505017102 | C78: 87.40
A79: 77 | B79: 20250505014429 | C79: 87.40
A80: 78 | B80: 20250505011530 | C80: 87.40
A81: 79 | B81: 20250505033020 | C81: 87.40
A82: 80 | B82: 20250505015017 | C82: 87.38
A83: 81 | B83: 20250505034806 | C83: 87.36
A84: 82 | B84: 20250505034330 | C84: 87.34
A85: 83 | B85: 20250505010322 | C85: 87.32
A86: 84 | B86: 20250505030802 | C86: 87.32
A87: 85 | B87: 20250505016229 | C87: 87.30
A88: 86 | B88: 20250505011306 | C88: 87.30
A89: 87 | B89: 20250505012213 | C89: 87.26
A90: 88 | B90: 20250505016827 | C90: 87.26
A91: 89 | B91: 20250505011725 | C91: 87.22
A92: 90 | B92: 20250505017419 | C92: 87.22
A93: 91 | B93: 20250505015029 | C93: 87.20
A94: 92 | B94: 20250505015130 | C94: 87.20
A95: 93 | B95: 20250505034102 | C95: 87.20
A96: 94 | B96: 20250505010403 | C96: 87.20
A97: 95 | B97: 20250505010513 | C97: 87.20
A98: 96 | B98: 20250505013823 | C98: 87.18
A99: 97 | B99: 20250505011001 | C99: 87.18
A100: 98 | B100: 20250505016510 | C100: 87.16
A101: 99 | B101: 20250505017912 | C101: 87.16
A102: 100 | B102: 20250505017218 | C102: 87.14
A103: 101 | B103: 20250505034615 | C103: 87.14
A104: 102 | B104: 20250505010416 | C104: 87.12
A105: 103 | B105: 20250505010401 | C105: 87.02
A106: 104 | B106: 20250505018018 | C106: 87.00
A107: 105 | B107: 20250505013508 | C107: 87.00
A108: 106 | B108: 20250505033810 | C108: 87.00
A109: 107 | B109: 20250505010507 | C109: 87.00
A110: 108 | B110: 20250505011416 | C110: 86.98
A111: 109 | B111: 20250505011512 | C111: 86.96
A112: 110 | B112: 20250505017111 | C112: 86.96
A113: 111 | B113: 20250505010104 | C113: 86.96
A114: 112 | B114: 20250505014827 | C114: 86.94
A115: 113 | B115: 20250505016019 | C115: 86.88
A116: 114 | B116: 20250505035017 | C116: 86.88
A117: 115 | B117: 20250505030628 | C117: 86.88
A118: 116 | B118: 20250505032808 | C118: 86.82
A119: 117 | B119: 20250505016520 | C119: 86.76
A120: 118 | B120: 20250505023617 | C120: 86.76
A121: 119 | B121: 20250505016725 | C121: 86.74
A122: 120 | B122: 20250505016717 | C122: 86.74
A123: 121 | B123: 20250505030123 | C123: 86.72
A124: 122 | B124: 20250505011612 | C124: 86.70
A125: 123 | B125: 20250505012730 | C125: 86.70
A126: 124 | B126: 20250505010405 | C126: 86.70
A127: 125 | B127: 20250505017810 | C127: 86.68
A128: 126 | B128: 20250505017428 | C128: 86.66
A129: 127 | B129: 20250505022821 | C129: 86.66
A130: 128 | B130: 20250505032729 | C130: 86.62
A131: 129 | B131: 20250505020221 | C131: 86.60
A132: 130 | B132: 20250505013514 | C132: 86.58
A133: 131 | B133: 20250505016718 | C133: 86.56
A134: 132 | B134: 20250505014622 | C134: 86.54
A135: 133 | B135: 20250505015217 | C135: 86.54
A136: 134 | B136: 20250505032617 | C136: 86.54
A137: 135 | B137: 20250505033007 | C137: 86.52
A138: 136 | B138: 20250505022117 | C138: 86.52
A139: 137 | B139: 20250505032019 | C139: 86.50
A140: 138 | B140: 20250505016727 | C140: 86.46
A141: 139 | B141: 20250505011506 | C141: 86.46
A142: 140 | B142: 20250505011908 | C142: 86.40
A143: 141 | B143: 20250505033907 | C143: 86.40
A144: 142 | B144: 20250505013630 | C144: 86.38
A145: 143 | B145: 20250505032210 | C145: 86.36
A146: 144 | B146: 20250505021524 | C146: 86.34
A147: 145 | B147: 20250505021607 | C147: 86.34
A148: 146 | B148: 20250505012709 | C148: 86.32
A149: 147 | B149: 20250505016426 | C149: 86.30
A150: 148 | B150: 20250505033018 | C150: 86.30
A151: 149 | B151: 20250505012304 | C151: 86.28
A152: 150 | B152: 20250505016007 | C152: 86.26
A153: 151 | B153: 20250505032419 | C153: 86.26
A154: 152 | B154: 20250505023712 | C154: 86.26
A155: 153 | B155: 20250505014923 | C155: 86.24
A156: 154 | B156: 20250505013728 | C156: 86.22
A157: 155 | B157: 20250505017902 | C157: 86.20
A158: 156 | B158: 20250505017630 | C158: 86.20
A159: 157 | B159: 20250505031304 | C159: 86.20
A160: 158 | B160: 20250505017024 | C160: 86.18
A161: 159 | B161: 20250505018014 | C161: 86.16
A162: 160 | B162: 20250505032626 | C162: 86.16
A163: 161 | B163: 20250505031108 | C163: 86.16
A164: 162 | B164: 20250505016829 | C164: 86.14
A165: 163 | B165: 20250505013824 | C165: 86.12
A166: 164 | B166: 20250505015016 | C166: 86.12
A167: 165 | B167: 20250505014208 | C167: 86.10
A168: 166 | B168: 20250505013426 | C168: 86.10
A169: 167 | B169: 20250505014919 | C169: 86.10
A170: 168 | B170: 20250505011124 | C170: 86.10
A171: 169 | B171: 20250505010501 | C171: 86.08
A172: 170 | B172: 20250505031707 | C172: 86.06
A173: 171 | B173: 20250505011402 | C173: 86.04
A174: 172 | B174: 20250505012405 | C174: 86.04
A175: 173 | B175: 20250505017405 | C175: 86.04
A176: 174 | B176: 20250505035114 | C176: 86.04
A177: 175 | B177: 20250505020517 | C177: 86.02
A178: 176 | B178: 20250505022707 | C178: 86.00
A179: 177 | B179: 20250505034010 | C179: 85.96
A180: 178 | B180: 20250505013710 | C180: 85.94
A181: 179 | B181: 20250505010505 | C181: 85.94
A182: 180 | B182: 20250505010718 | C182: 85.92
A183: 181 | B183: 20250505010212 | C183: 85.90
A184: 182 | B184: 20250505010714 | C184: 85.90
A185: 183 | B185: 20250505010428 | C185: 85.90
A186: 184 | B186: 20250505010510 | C186: 85.84
A187: 185 | B187: 20250505012825 | C187: 85.82
A188: 186 | B188: 20250505012329 | C188: 85.80
A189: 187 | B189: 20250505022427 | C189: 85.80
A190: 188 | B190: 20250505010606 | C190: 85.80
A191: 189 | B191: 20250505017016 | C191: 85.72
A192: 190 | B192: 20250505030910 | C192: 85.70
A193: 191 | B193: 20250505012515 | C193: 85.68
A194: 192 | B194: 20250505034321 | C194: 85.68
A195: 193 | B195: 20250505031217 | C195: 85.66
A196: 194 | B196: 20250505011102 | C196: 85.66
A197: 195 | B197: 20250505017310 | C197: 85.64
A198: 196 | B198: 20250505017527 | C198: 85.62
A199: 197 | B199: 20250505012117 | C199: 85.60
A200: 198 | B200: 20250505017401 | C200: 85.60
... 593 more rows

Sheet Sheet1
A1: 2025年织金县特岗计划教师招聘笔试成绩
A2: 序号 | B2: 姓名 | C2: 准考证号 | D2: 学段 | E2: 学科 | F2: 成绩 | G2: 笔试排名 | H2: 是否进入面试 | I2: 面试室 | J2: 面试序号 | K2: 面试成绩
A3: 1 | B3: 牟香 | C3: 20250505015425 | D3: 小学 | E3: 体育与健康 | F3: 87.5 | G3: 1 | H3: 是 | I3: 3 | J3: 21
A4: 2 | B4: 罗堞 | C4: 20250505011402 | D4: 小学 | E4: 体育与健康 | F4: 87 | G4: 2 | H4: 是 | I4: 7 | J4: 5
A5: 3 | B5: 周小汪 | C5: 20250505014918 | D5: 小学 | E5: 体育与健康 | F5: 86.75 | G5: 3 | H5: 是 | I5: 5 | J5: 8
A6: 4 | B6: 吴涛 | C6: 20250505011414 | D6: 小学 | E6: 体育与健康 | F6: 86.5 | G6: 4 | H6: 是 | I6: 3 | J6: 20
A7: 5 | B7: 赵英怀· | C7: 20250505014214 | D7: 小学 | E7: 体育与健康 | F7: 86 | G7: 5 | H7: 是 | I7: 8 | J7: 11
A8: 6 | B8: 陈雪 | C8: 20250505012418 | D8: 小学 | E8: 体育与健康 | F8: 85.5 | G8: 6 | H8: 是 | I8: 6 | J8: 11
A9: 7 | B9: 肖艳 | C9: 20250505012426 | D9: 小学 | E9: 体育与健康 | F9: 85.25 | G9: 7 | H9: 是 | I9: 3 | J9: 9
A10: 8 | B10: 沙锦成 | C10: 20250505015125 | D10: 小学 | E10: 体育与健康 | F10: 84.75 | G10: 8 | H10: 是 | I10: 3 | J10: 4
A11: 9 | B11: 班斯念 | C11: 20250505014702 | D11: 小学 | E11: 体育与健康 | F11: 84 | G11: 9 | H11: 是 | I11: 1 | J11: 13
A12: 10 | B12: 王桥福 | C12: 20250505017102 | D12: 小学 | E12: 体育与健康 | F12: 83.25 | G12: 10 | H12: 是 | I12: 2 | J12: 30
A13: 11 | B13: 赵光富 | C13: 20250505014025 | D13: 小学 | E13: 体育与健康 | F13: 83 | G13: 11 | H13: 是 | I13: 6 | J13: 17
A14: 12 | B14: 彭丹 | C14: 20250505014916 | D14: 小学 | E14: 体育与健康 | F14: 83 | G14: 11 | H14: 是 | I14: 3 | J14: 5
A15: 13 | B15: 文明龙 | C15: 20250505018109 | D15: 小学 | E15: 体育与健康 | F15: 83 | G15: 11 | H15: 是 | I15: 4 | J15: 11
A16: 14 | B16: 李孟 | C16: 20250505011827 | D16: 小学 | E16: 体育与健康 | F16: 82.75 | G16: 14 | H16: 是 | I16: 4 | J16: 8
A17: 15 | B17: 喻勐 | C17: 20250505014525 | D17: 小学 | E17: 体育与健康 | F17: 82.5 | G17: 15 | H17: 是 | I17: 6 | J17: 22
A18: 16 | B18: 刘依依 | C18: 20250505015017 | D18: 小学 | E18: 体育与健康 | F18: 82.5 | G18: 15 | H18: 是 | I18: 6 | J18: 8
A19: 17 | B19: 吴龙 | C19: 20250505015314 | D19: 小学 | E19: 体育与健康 | F19: 82.5 | G19: 15 | H19: 是 | I19: 1 | J19: 14
A20: 18 | B20: 黄文玲 | C20: 20250505016114 | D20: 小学 | E20: 体育与健康 | F20: 82.5 | G20: 15 | H20: 是 | I20: 1 | J20: 22
A21: 19 | B21: 曾春香 | C21: 20250505016518 | D21: 小学 | E21: 体育与健康 | F21: 82.25 | G21: 19 | H21: 是 | I21: 1 | J21: 4
A22: 20 | B22: 赵愿 | C22: 20250505014625 | D22: 小学 | E22: 体育与健康 | F22: 82 | G22: 20 | H22: 是 | I22: 6 | J22: 24
A23: 21 | B23: 周其雪 | C23: 20250505015416 | D23: 小学 | E23: 体育与健康 | F23: 82 | G23: 20 | H23: 是 | I23: 4 | J23: 17
A24: 22 | B24: 姚江河 | C24: 20250505016019 | D24: 小学 | E24: 体育与健康 | F24: 81.75 | G24: 22 | H24: 是 | I24: 7 | J24: 29
A25: 23 | B25: 李树成 | C25: 20250505013217 | D25: 小学 | E25: 体育与健康 | F25: 81.5 | G25: 23 | H25: 是 | I25: 3 | J25: 30
A26: 24 | B26: 喻孝燚 | C26: 20250505016922 | D26: 小学 | E26: 体育与健康 | F26: 81.5 | G26: 23 | H26: 是 | I26: 5 | J26: 22
A27: 25 | B27: 刘欢 | C27: 20250505012825 | D27: 小学 | E27: 体育与健康 | F27: 81 | G27: 25 | H27: 是 | I27: 8 | J27: 14
A28: 26 | B28: 潘江花 | C28: 20250505015012 | D28: 小学 | E28: 体育与健康 | F28: 81 | G28: 25 | H28: 是 | I28: 4 | J28: 31
A29: 27 | B29: 祖文丹 | C29: 20250505015610 | D29: 小学 | E29: 体育与健康 | F29: 81 | G29: 25 | H29: 是 | I29: 8 | J29: 21
A30: 28 | B30: 卢超 | C30: 20250505013512 | D30: 小学 | E30: 体育与健康 | F30: 80.75 | G30: 28 | H30: 是 | I30: 2 | J30: 12
A31: 29 | B31: 朱锡芸 | C31: 20250505016015 | D31: 小学 | E31: 体育与健康 | F31: 80.75 | G31: 28 | H31: 是 | I31: 3 | J31: 13
A32: 30 | B32: 谢兴鹅 | C32: 20250505017310 | D32: 小学 | E32: 体育与健康 | F32: 80.75 | G32: 28 | H32: 是 | I32: 2 | J32: 5
A33: 31 | B33: 吴顺妹 | C33: 20250505017806 | D33: 小学 | E33: 体育与健康 | F33: 80.75 | G33: 28 | H33: 是 | I33: 7 | J33: 13
A34: 32 | B34: 刘行 | C34: 20250505015530 | D34: 小学 | E34: 体育与健康 | F34: 80.5 | G34: 32 | H34: 是
A35: 33 | B35: 简凡 | C35: 20250505017020 | D35: 小学 | E35: 体育与健康 | F35: 80.5 | G35: 32 | H35: 是 | I35: 7 | J35: 27
A36: 34 | B36: 谭群 | C36: 20250505013812 | D36: 小学 | E36: 体育与健康 | F36: 80.25 | G36: 34 | H36: 是 | I36: 3 | J36: 14
A37: 35 | B37: 吴昌燕 | C37: 20250505015010 | D37: 小学 | E37: 体育与健康 | F37: 80.25 | G37: 34 | H37: 是 | I37: 2 | J37: 16
A38: 36 | B38: 张浪浪 | C38: 20250505011411 | D38: 小学 | E38: 体育与健康 | F38: 80 | G38: 36 | H38: 是 | I38: 4 | J38: 12
A39: 37 | B39: 赵雪冬 | C39: 20250505011416 | D39: 小学 | E39: 体育与健康 | F39: 80 | G39: 36 | H39: 是 | I39: 8 | J39: 17
A40: 38 | B40: 盛香艳 | C40: 20250505011830 | D40: 小学 | E40: 体育与健康 | F40: 80 | G40: 36 | H40: 是 | I40: 1 | J40: 27
A41: 39 | B41: 姜大婷 | C41: 20250505016329 | D41: 小学 | E41: 体育与健康 | F41: 79.75 | G41: 39 | H41: 是 | I41: 1 | J41: 24
A42: 40 | B42: 苏银辉 | C42: 20250505017428 | D42: 小学 | E42: 体育与健康 | F42: 79.75 | G42: 39 | H42: 是 | I42: 6 | J42: 25
A43: 41 | B43: 张训 | C43: 20250505012916 | D43: 小学 | E43: 体育与健康 | F43: 79.5 | G43: 41 | H43: 是 | I43: 2 | J43: 28
A44: 42 | B44: 李晔 | C44: 20250505013630 | D44: 小学 | E44: 体育与健康 | F44: 79.5 | G44: 41 | H44: 是 | I44: 7 | J44: 28
A45: 43 | B45: 张亚亚 | C45: 20250505014429 | D45: 小学 | E45: 体育与健康 | F45: 79.5 | G45: 41 | H45: 是 | I45: 4 | J45: 10
A46: 44 | B46: 王玉福 | C46: 20250505015217 | D46: 小学 | E46: 体育与健康 | F46: 79.5 | G46: 41 | H46: 是 | I46: 8 | J46: 19
A47: 45 | B47: 杨梅 | C47: 20250505016112 | D47: 小学 | E47: 体育与健康 | F47: 79.5 | G47: 41 | H47: 是 | I47: 5 | J47: 14
A48: 46 | B48: 韦燕 | C48: 20250505016303 | D48: 小学 | E48: 体育与健康 | F48: 79.5 | G48: 41 | H48: 是 | I48: 5 | J48: 15
A49: 47 | B49: 刘丁 | C49: 20250505016730 | D49: 小学 | E49: 体育与健康 | F49: 79.5 | G49: 41 | H49: 是 | I49: 3 | J49: 23
A50: 48 | B50: 赵臣艺 | C50: 20250505018018 | D50: 小学 | E50: 体育与健康 | F50: 79.5 | G50: 41 | H50: 是 | I50: 2 | J50: 15
A51: 49 | B51: 徐洋 | C51: 20250505018024 | D51: 小学 | E51: 体育与健康 | F51: 79.5 | G51: 41 | H51: 是 | I51: 7 | J51: 14
A52: 50 | B52: 舒元翠 | C52: 20250505011603 | D52: 小学 | E52: 体育与健康 | F52: 79.25 | G52: 50 | H52: 是 | I52: 8 | J52: 7
A53: 51 | B53: 伍玉琴 | C53: 20250505014017 | D53: 小学 | E53: 体育与健康 | F53: 79.25 | G53: 50 | H53: 是 | I53: 4 | J53: 30
A54: 52 | B54: 万娟 | C54: 20250505016520 | D54: 小学 | E54: 体育与健康 | F54: 79.25 | G54: 50 | H54: 是 | I54: 6 | J54: 27
A55: 53 | B55: 伍猛 | C55: 20250505012129 | D55: 小学 | E55: 体育与健康 | F55: 79 | G55: 53 | H55: 是 | I55: 3 | J55: 25
A56: 54 | B56: 罗国梅 | C56: 20250505013803 | D56: 小学 | E56: 体育与健康 | F56: 79 | G56: 53 | H56: 是 | I56: 2 | J56: 6
A57: 55 | B57: 刘行 | C57: 20250505014209 | D57: 小学 | E57: 体育与健康 | F57: 79 | G57: 53 | H57: 是 | I57: 2 | J57: 14
A58: 56 | B58: 陈天菊 | C58: 20250505014316 | D58: 小学 | E58: 体育与健康 | F58: 79 | G58: 53 | H58: 是 | I58: 2 | J58: 4
A59: 57 | B59: 李德俊 | C59: 20250505015430 | D59: 小学 | E59: 体育与健康 | F59: 79 | G59: 53 | H59: 是 | I59: 7 | J59: 22
A60: 58 | B60: 陈启琴 | C60: 20250505015619 | D60: 小学 | E60: 体育与健康 | F60: 79 | G60: 53 | H60: 是 | I60: 6 | J60: 7
A61: 59 | B61: 马晨曦 | C61: 20250505016007 | D61: 小学 | E61: 体育与健康 | F61: 79 | G61: 53 | H61: 是 | I61: 4 | J61: 13
A62: 60 | B62: 张会 | C62: 20250505015004 | D62: 小学 | E62: 体育与健康 | F62: 78.75 | G62: 60 | H62: 是 | I62: 7 | J62: 17
A63: 61 | B63: 程海 | C63: 20250505012411 | D63: 小学 | E63: 体育与健康 | F63: 78.5 | G63: 61 | H63: 是 | I63: 2 | J63: 2
A64: 62 | B64: 覃小凤 | C64: 20250505013510 | D64: 小学 | E64: 体育与健康 | F64: 78.5 | G64: 61 | H64: 是 | I64: 7 | J64: 1
A65: 63 | B65: 吴英兰 | C65: 20250505013901 | D65: 小学 | E65: 体育与健康 | F65: 78.5 | G65: 61 | H65: 是 | I65: 3 | J65: 15
A66: 64 | B66: 王祥燕 | C66: 20250505013922 | D66: 小学 | E66: 体育与健康 | F66: 78.5 | G66: 61 | H66: 是 | I66: 8 | J66: 4
A67: 65 | B67: 鲁云 | C67: 20250505017307 | D67: 小学 | E67: 体育与健康 | F67: 78.5 | G67: 61 | H67: 是 | I67: 5 | J67: 6
A68: 66 | B68: 黄绪 | C68: 20250505017319 | D68: 小学 | E68: 体育与健康 | F68: 78.5 | G68: 61 | H68: 是 | I68: 3 | J68: 29
A69: 67 | B69: 赵进 | C69: 20250505018014 | D69: 小学 | E69: 体育与健康 | F69: 78.5 | G69: 61 | H69: 是 | I69: 8 | J69: 28
A70: 68 | B70: 李忠梅 | C70: 20250505013426 | D70: 小学 | E70: 体育与健康 | F70: 78.25 | G70: 68 | H70: 是 | I70: 7 | J70: 20
A71: 69 | B71: 李红帅 | C71: 20250505014909 | D71: 小学 | E71: 体育与健康 | F71: 78.25 | G71: 68 | H71: 是 | I71: 8 | J71: 1
A72: 70 | B72: 吉彰化 | C72: 20250505015006 | D72: 小学 | E72: 体育与健康 | F72: 78.25 | G72: 68 | H72: 是 | I72: 3 | J72: 7
A73: 71 | B73: 吴绪 | C73: 20250505017111 | D73: 小学 | E73: 体育与健康 | F73: 78.25 | G73: 68 | H73: 是 | I73: 6 | J73: 5
A74: 72 | B74: 敖晓静 | C74: 20250505011612 | D74: 小学 | E74: 体育与健康 | F74: 78 | G74: 72 | H74: 是 | I74: 5 | J74: 19
A75: 73 | B75: 周利明 | C75: 20250505012929 | D75: 小学 | E75: 体育与健康 | F75: 78 | G75: 72 | H75: 是 | I75: 5 | J75: 9
A76: 74 | B76: 谢龙 | C76: 20250505013514 | D76: 小学 | E76: 体育与健康 | F76: 78 | G76: 72 | H76: 是 | I76: 7 | J76: 8
A77: 75 | B77: 马富克 | C77: 20250505014027 | D77: 小学 | E77: 体育与健康 | F77: 78 | G77: 72 | H77: 是 | I77: 7 | J77: 3
A78: 76 | B78: 马帅帅 | C78: 20250505014622 | D78: 小学 | E78: 体育与健康 | F78: 78 | G78: 72 | H78: 是 | I78: 2 | J78: 23
A79: 77 | B79: 万阳 | C79: 20250505014923 | D79: 小学 | E79: 体育与健康 | F79: 78 | G79: 72 | H79: 是 | I79: 8 | J79: 5
A80: 78 | B80: 杨美美 | C80: 20250505015604 | D80: 小学 | E80: 体育与健康 | F80: 78 | G80: 72 | H80: 是 | I80: 1 | J80: 29
A81: 79 | B81: 张飞 | C81: 20250505016829 | D81: 小学 | E81: 体育与健康 | F81: 78 | G81: 72 | H81: 是 | I81: 8 | J81: 24
A82: 80 | B82: 朱江 | C82: 20250505015702 | D82: 小学 | E82: 体育与健康 | F82: 77.75 | G82: 80 | H82: 是 | I82: 4 | J82: 19
A83: 81 | B83: 马窕 | C83: 20250505011530 | D83: 小学 | E83: 体育与健康 | F83: 77.5 | G83: 81 | H83: 是 | I83: 5 | J83: 21
A84: 82 | B84: 刘梅 | C84: 20250505011723 | D84: 小学 | E84: 体育与健康 | F84: 77.5 | G84: 81 | H84: 是 | I84: 8 | J84: 23
A85: 83 | B85: 马礼简 | C85: 20250505011908 | D85: 小学 | E85: 体育与健康 | F85: 77.5 | G85: 81 | H85: 是 | I85: 6 | J85: 3
A86: 84 | B86: 侯玲玲 | C86: 20250505012909 | D86: 小学 | E86: 体育与健康 | F86: 77.5 | G86: 81 | H86: 是 | I86: 4 | J86: 24
A87: 85 | B87: 肖寨 | C87: 20250505013504 | D87: 小学 | E87: 体育与健康 | F87: 77.5 | G87: 81 | H87: 是 | I87: 2 | J87: 7
A88: 86 | B88: 穆兵 | C88: 20250505014515 | D88: 小学 | E88: 体育与健康 | F88: 77.5 | G88: 81 | H88: 是 | I88: 4 | J88: 6
A89: 87 | B89: 丁雪 | C89: 20250505016523 | D89: 小学 | E89: 体育与健康 | F89: 77.5 | G89: 81 | H89: 是 | I89: 7 | J89: 11
A90: 88 | B90: 张荣赛 | C90: 20250505017012 | D90: 小学 | E90: 体育与健康 | F90: 77.5 | G90: 81 | H90: 是 | I90: 7 | J90: 16
A91: 89 | B91: 周泽平 | C91: 20250505012818 | D91: 小学 | E91: 体育与健康 | F91: 77.25 | G91: 89 | H91: 是 | I91: 5 | J91: 20
A92: 90 | B92: 杨世民 | C92: 20250505014818 | D92: 小学 | E92: 体育与健康 | F92: 77.25 | G92: 89 | H92: 是 | I92: 1 | J92: 10
A93: 91 | B93: 肖马薇 | C93: 20250505011421 | D93: 小学 | E93: 体育与健康 | F93: 77 | G93: 91 | H93: 是 | I93: 5 | J93: 24
A94: 92 | B94: 陈思娣 | C94: 20250505012124 | D94: 小学 | E94: 体育与健康 | F94: 77 | G94: 91 | H94: 是 | I94: 1 | J94: 31
A95: 93 | B95: 罗和林 | C95: 20250505012606 | D95: 小学 | E95: 体育与健康 | F95: 77 | G95: 91 | H95: 是 | I95: 5 | J95: 25
A96: 94 | B96: 万雨 | C96: 20250505013823 | D96: 小学 | E96: 体育与健康 | F96: 77 | G96: 91 | H96: 是 | I96: 7 | J96: 19
A97: 95 | B97: 罗官琴 | C97: 20250505014807 | D97: 小学 | E97: 体育与健康 | F97: 77 | G97: 91 | H97: 是 | I97: 6 | J97: 10
A98: 96 | B98: 李小波 | C98: 20250505016127 | D98: 小学 | E98: 体育与健康 | F98: 77 | G98: 91 | H98: 是 | I98: 3 | J98: 10
A99: 97 | B99: 李川 | C99: 20250505016717 | D99: 小学 | E99: 体育与健康 | F99: 77 | G99: 91 | H99: 是 | I99: 8 | J99: 6
A100: 98 | B100: 李娟 | C100: 20250505017401 | D100: 小学 | E100: 体育与健康 | F100: 77 | G100: 91 | H100: 是 | I100: 8 | J100: 22
A101: 99 | B101: 王青 | C101: 20250505011506 | D101: 小学 | E101: 体育与健康 | F101: 76.75 | G101: 99 | H101: 是 | I101: 4 | J101: 28
A102: 100 | B102: 向成念 | C102: 20250505012709 | D102: 小学 | E102: 体育与健康 | F102: 76.75 | G102: 99 | H102: 是 | I102: 6 | J102: 12
A103: 101 | B103: 陈章喜 | C103: 20250505015112 | D103: 小学 | E103: 体育与健康 | F103: 76.75 | G103: 99 | H103: 是 | I103: 1 | J103: 6
A104: 102 | B104: 骆科未 | C104: 20250505016229 | D104: 小学 | E104: 体育与健康 | F104: 76.75 | G104: 99 | H104: 是 | I104: 4 | J104: 29
A105: 103 | B105: 王宇 | C105: 20250505016510 | D105: 小学 | E105: 体育与健康 | F105: 76.75 | G105: 99 | H105: 是 | I105: 2 | J105: 3
A106: 104 | B106: 何泽 | C106: 20250505017101 | D106: 小学 | E106: 体育与健康 | F106: 76.75 | G106: 99 | H106: 是 | I106: 5 | J106: 12
A107: 105 | B107: 杨涛 | C107: 20250505011426 | D107: 小学 | E107: 体育与健康 | F107: 76.5 | G107: 105 | H107: 是 | I107: 4 | J107: 18
A108: 106 | B108: 赵寻 | C108: 20250505011512 | D108: 小学 | E108: 体育与健康 | F108: 76.5 | G108: 105 | H108: 是 | I108: 4 | J108: 9
A109: 107 | B109: 李增彬 | C109: 20250505011817 | D109: 小学 | E109: 体育与健康 | F109: 76.5 | G109: 105 | H109: 是 | I109: 5 | J109: 31
A110: 108 | B110: 迟宽巧 | C110: 20250505011825 | D110: 小学 | E110: 体育与健康 | F110: 76.5 | G110: 105 | H110: 是 | I110: 5 | J110: 28
A111: 109 | B111: 马旭 | C111: 20250505014202 | D111: 小学 | E111: 体育与健康 | F111: 76.5 | G111: 105 | H111: 是 | I111: 8 | J111: 03
A112: 110 | B112: 李贤爱 | C112: 20250505015224 | D112: 小学 | E112: 体育与健康 | F112: 76.5 | G112: 105 | H112: 是 | I112: 5 | J112: 23
A113: 111 | B113: 吴云滔 | C113: 20250505017320 | D113: 小学 | E113: 体育与健康 | F113: 76.5 | G113: 105 | H113: 是 | I113: 6 | J113: 6
A114: 112 | B114: 汤清楚 | C114: 20250505017810 | D114: 小学 | E114: 体育与健康 | F114: 76.5 | G114: 105 | H114: 是 | I114: 2 | J114: 9
A115: 113 | B115: 郭丽娟 | C115: 20250505011822 | D115: 小学 | E115: 体育与健康 | F115: 76.25 | G115: 113 | H115: 是 | I115: 5 | J115: 4
A116: 114 | B116: 邹盼 | C116: 20250505014710 | D116: 小学 | E116: 体育与健康 | F116: 76.25 | G116: 113 | H116: 是 | I116: 4 | J116: 4
A117: 115 | B117: 常胜胜 | C117: 20250505014815 | D117: 小学 | E117: 体育与健康 | F117: 76.25 | G117: 113 | H117: 是 | I117: 5 | J117: 1
A118: 116 | B118: 邓姁 | C118: 20250505014919 | D118: 小学 | E118: 体育与健康 | F118: 76.25 | G118: 113 | H118: 是 | I118: 8 | J118: 30
A119: 117 | B119: 苏建华 | C119: 20250505016309 | D119: 小学 | E119: 体育与健康 | F119: 76.25 | G119: 113 | H119: 是 | I119: 7 | J119: 18
A120: 118 | B120: 吕开朗 | C120: 20250505017723 | D120: 小学 | E120: 体育与健康 | F120: 76.25 | G120: 113 | H120: 是 | I120: 3 | J120: 2
A121: 119 | B121: 吴国安 | C121: 20250505017912 | D121: 小学 | E121: 体育与健康 | F121: 76.25 | G121: 113 | H121: 是 | I121: 4 | J121: 25
A122: 120 | B122: 李海涛 | C122: 20250505011920 | D122: 小学 | E122: 体育与健康 | F122: 76 | G122: 120 | H122: 是 | I122: 1 | J122: 8
A123: 121 | B123: 田福陈 | C123: 20250505012515 | D123: 小学 | E123: 体育与健康 | F123: 76 | G123: 120 | H123: 是 | I123: 8 | J123: 20
A124: 122 | B124: 杨静 | C124: 20250505013628 | D124: 小学 | E124: 体育与健康 | F124: 76 | G124: 120 | H124: 是 | I124: 4 | J124: 2
A125: 123 | B125: 吴兰 | C125: 20250505013904 | D125: 小学 | E125: 体育与健康 | F125: 76 | G125: 120 | H125: 是 | I125: 3 | J125: 12
A126: 124 | B126: 幸雪 | C126: 20250505014030 | D126: 小学 | E126: 体育与健康 | F126: 76 | G126: 120 | H126: 是 | I126: 6 | J126: 1
A127: 125 | B127: 朱浪 | C127: 20250505014418 | D127: 小学 | E127: 体育与健康 | F127: 76 | G127: 120 | H127: 是 | I127: 1 | J127: 19
A128: 126 | B128: 杨莉柳 | C128: 20250505014806 | D128: 小学 | E128: 体育与健康 | F128: 76 | G128: 120 | H128: 是 | I128: 3 | J128: 24
A129: 127 | B129: 张义文 | C129: 20250505015016 | D129: 小学 | E129: 体育与健康 | F129: 76 | G129: 120 | H129: 是 | I129: 7 | J129: 2
A130: 128 | B130: 骆钱维 | C130: 20250505015809 | D130: 小学 | E130: 体育与健康 | F130: 76 | G130: 120 | H130: 是 | I130: 4 | J130: 26
A131: 129 | B131: 陆承焰 | C131: 20250505016727 | D131: 小学 | E131: 体育与健康 | F131: 76 | G131: 120 | H131: 是 | I131: 4 | J131: 21
A132: 130 | B132: 李福军 | C132: 20250505016903 | D132: 小学 | E132: 体育与健康 | F132: 76 | G132: 120 | H132: 是 | I132: 8 | J132: 27
A133: 131 | B133: 刘桂兴 | C133: 20250505017402 | D133: 小学 | E133: 体育与健康 | F133: 76 | G133: 120 | H133: 是 | I133: 3 | J133: 1
A134: 132 | B134: 朱晓雪 | C134: 20250505017419 | D134: 小学 | E134: 体育与健康 | F134: 76 | G134: 120 | H134: 是 | I134: 2 | J134: 20
A135: 133 | B135: 王芳 | C135: 20250505011511 | D135: 小学 | E135: 体育与健康 | F135: 75.75 | G135: 133 | H135: 是 | I135: 1 | J135: 23
A136: 134 | B136: 罗先玉 | C136: 20250505013013 | D136: 小学 | E136: 体育与健康 | F136: 75.75 | G136: 133 | H136: 是 | I136: 4 | J136: 23
A137: 135 | B137: 曾豪江 | C137: 20250505014413 | D137: 小学 | E137: 体育与健康 | F137: 75.75 | G137: 133 | H137: 是 | I137: 8 | J137: 9
A138: 136 | B138: 舒微 | C138: 20250505014910 | D138: 小学 | E138: 体育与健康 | F138: 75.75 | G138: 133 | H138: 是 | I138: 2 | J138: 24
A139: 137 | B139: 王江 | C139: 20250505015330 | D139: 小学 | E139: 体育与健康 | F139: 75.75 | G139: 133 | H139: 是 | I139: 7 | J139: 25
A140: 138 | B140: 张潘 | C140: 20250505012410 | D140: 小学 | E140: 体育与健康 | F140: 75.5 | G140: 138 | H140: 是 | I140: 2 | J140: 31
A141: 139 | B141: 王天富 | C141: 20250505012605 | D141: 小学 | E141: 体育与健康 | F141: 75.5 | G141: 138 | H141: 是 | I141: 8 | J141: 12
A142: 140 | B142: 余莉 | C142: 20250505012607 | D142: 小学 | E142: 体育与健康 | F142: 75.5 | G142: 138 | H142: 是 | I142: 8 | J142: 16
A143: 141 | B143: 杨胜全 | C143: 20250505015029 | D143: 小学 | E143: 体育与健康 | F143: 75.5 | G143: 138 | H143: 是 | I143: 2 | J143: 18
A144: 142 | B144: 熊鑫 | C144: 20250505015508 | D144: 小学 | E144: 体育与健康 | F144: 75.5 | G144: 138 | H144: 是 | I144: 3 | J144: 3
A145: 143 | B145: 彭东 | C145: 20250505016005 | D145: 小学 | E145: 体育与健康 | F145: 75.5 | G145: 138 | H145: 是 | I145: 1 | J145: 11
A146: 144 | B146: 李文荣 | C146: 20250505016426 | D146: 小学 | E146: 体育与健康 | F146: 75.5 | G146: 138 | H146: 是 | I146: 2 | J146: 29
A147: 145 | B147: 张粉艳 | C147: 20250505016827 | D147: 小学 | E147: 体育与健康 | F147: 75.5 | G147: 138 | H147: 是 | I147: 4 | J147: 20
A148: 146 | B148: 孟江 | C148: 20250505017205 | D148: 小学 | E148: 体育与健康 | F148: 75.5 | G148: 138 | H148: 是 | I148: 7 | J148: 30
A149: 147 | B149: 张举贵 | C149: 20250505017519 | D149: 小学 | E149: 体育与健康 | F149: 75.5 | G149: 138 | H149: 是 | I149: 5 | J149: 30
A150: 148 | B150: 石应明 | C150: 20250505017527 | D150: 小学 | E150: 体育与健康 | F150: 75.5 | G150: 138 | H150: 是 | I150: 8 | J150: 13
A151: 149 | B151: 刘原州 | C151: 20250505017630 | D151: 小学 | E151: 体育与健康 | F151: 75.5 | G151: 138 | H151: 是 | I151: 8 | J151: 18
A152: 150 | B152: 高腾 | C152: 20250505012304 | D152: 小学 | E152: 体育与健康 | F152: 75.25 | G152: 150 | H152: 是 | I152: 7 | J152: 12
A153: 151 | B153: 邓礼鹏 | C153: 20250505012311 | D153: 小学 | E153: 体育与健康 | F153: 75.25 | G153: 150 | H153: 是 | I153: 5 | J153: 10
A154: 152 | B154: 罗飞 | C154: 20250505013025 | D154: 小学 | E154: 体育与健康 | F154: 75.25 | G154: 150 | H154: 是 | I154: 1 | J154: 30
A155: 153 | B155: 陈磊 | C155: 20250505013405 | D155: 小学 | E155: 体育与健康 | F155: 75.25 | G155: 150 | H155: 是 | I155: 1 | J155: 12
A156: 154 | B156: 杨丽娟 | C156: 20250505014417 | D156: 小学 | E156: 体育与健康 | F156: 75.25 | G156: 150 | H156: 是 | I156: 4 | J156: 5
A157: 155 | B157: 彭鑫 | C157: 20250505014521 | D157: 小学 | E157: 体育与健康 | F157: 75.25 | G157: 150 | H157: 是 | I157: 6 | J157: 4
A158: 156 | B158: 江琴 | C158: 20250505015825 | D158: 小学 | E158: 体育与健康 | F158: 75.25 | G158: 150 | H158: 是 | I158: 1 | J158: 7
A159: 157 | B159: 卢斌 | C159: 20250505016411 | D159: 小学 | E159: 体育与健康 | F159: 75.25 | G159: 150 | H159: 是
A160: 158 | B160: 杨依婷 | C160: 20250505017010 | D160: 小学 | E160: 体育与健康 | F160: 75.25 | G160: 150 | H160: 是 | I160: 7 | J160: 15
A161: 159 | B161: 郭羽 | C161: 20250505011430 | D161: 小学 | E161: 体育与健康 | F161: 75 | G161: 159 | H161: 是 | I161: 3 | J161: 17
A162: 160 | B162: 徐亮秋 | C162: 20250505011812 | D162: 小学 | E162: 体育与健康 | F162: 75 | G162: 159 | H162: 是 | I162: 2 | J162: 21
A163: 161 | B163: 李影 | C163: 20250505012213 | D163: 小学 | E163: 体育与健康 | F163: 75 | G163: 159 | H163: 是 | I163: 2 | J163: 17
A164: 162 | B164: 高兴洪 | C164: 20250505012405 | D164: 小学 | E164: 体育与健康 | F164: 75 | G164: 159 | H164: 是 | I164: 8 | J164: 02
A165: 163 | B165: 何灿 | C165: 20250505013728 | D165: 小学 | E165: 体育与健康 | F165: 75 | G165: 159 | H165: 是 | I165: 8 | J165: 29
A166: 164 | B166: 梁龙江 | C166: 20250505014002 | D166: 小学 | E166: 体育与健康 | F166: 75 | G166: 159 | H166: 是 | I166: 3 | J166: 8
A167: 165 | B167: 黄有鹏 | C167: 20250505014208 | D167: 小学 | E167: 体育与健康 | F167: 75 | G167: 159 | H167: 是 | I167: 6 | J167: 15
A168: 166 | B168: 于杰 | C168: 20250505015212 | D168: 小学 | E168: 体育与健康 | F168: 75 | G168: 159 | H168: 是 | I168: 7 | J168: 24
A169: 167 | B169: 雷国苹 | C169: 20250505015305 | D169: 小学 | E169: 体育与健康 | F169: 75 | G169: 159 | H169: 是 | I169: 7 | J169: 23
A170: 168 | B170: 马欧沙 | C170: 20250505015429 | D170: 小学 | E170: 体育与健康 | F170: 75 | G170: 159 | H170: 是
A171: 169 | B171: 龙晓鸣 | C171: 20250505017016 | D171: 小学 | E171: 体育与健康 | F171: 75 | G171: 159 | H171: 是 | I171: 8 | J171: 15
A172: 170 | B172: 金远豪 | C172: 20250505011404 | D172: 小学 | E172: 体育与健康 | F172: 74.75 | G172: 170 | H172: 是 | I172: 1 | J172: 16
A173: 171 | B173: 罗金翠 | C173: 20250505018106 | D173: 小学 | E173: 体育与健康 | F173: 74.75 | G173: 170 | H173: 是 | I173: 1 | J173: 2
A174: 172 | B174: 佘昊文 | C174: 20250505013806 | D174: 小学 | E174: 体育与健康 | F174: 74.5 | G174: 172 | H174: 是 | I174: 1 | J174: 5
A175: 173 | B175: 王冯 | C175: 20250505013827 | D175: 小学 | E175: 体育与健康 | F175: 74.5 | G175: 172 | H175: 是 | I175: 6 | J175: 9
A176: 174 | B176: 王兵 | C176: 20250505014321 | D176: 小学 | E176: 体育与健康 | F176: 74.5 | G176: 172 | H176: 是 | I176: 2 | J176: 10
A177: 175 | B177: 陈霞 | C177: 20250505014930 | D177: 小学 | E177: 体育与健康 | F177: 74.5 | G177: 172 | H177: 是 | I177: 2 | J177: 26
A178: 176 | B178: 王西春 | C178: 20250505016718 | D178: 小学 | E178: 体育与健康 | F178: 74.5 | G178: 172 | H178: 是 | I178: 5 | J178: 16
A179: 177 | B179: 邰永才 | C179: 20250505017916 | D179: 小学 | E179: 体育与健康 | F179: 74.5 | G179: 172 | H179: 是 | I179: 1 | J179: 17
A180: 178 | B180: 田应艳 | C180: 20250505012117 | D180: 小学 | E180: 体育与健康 | F180: 74.25 | G180: 178 | H180: 是 | I180: 6 | J180: 26
A181: 179 | B181: 李云飞 | C181: 20250505012230 | D181: 小学 | E181: 体育与健康 | F181: 74.25 | G181: 178 | H181: 是 | I181: 7 | J181: 9
A182: 180 | B182: 朱龙祥 | C182: 20250505012309 | D182: 小学 | E182: 体育与健康 | F182: 74.25 | G182: 178 | H182: 是 | I182: 5 | J182: 18
A183: 181 | B183: 杨云龙 | C183: 20250505012730 | D183: 小学 | E183: 体育与健康 | F183: 74.25 | G183: 178 | H183: 是 | I183: 6 | J183: 14
A184: 182 | B184: 周杭 | C184: 20250505014810 | D184: 小学 | E184: 体育与健康 | F184: 74.25 | G184: 178 | H184: 是
A185: 183 | B185: 王燕强 | C185: 20250505015007 | D185: 小学 | E185: 体育与健康 | F185: 74.25 | G185: 178 | H185: 是 | I185: 1 | J185: 15
A186: 184 | B186: 李忠 | C186: 20250505015028 | D186: 小学 | E186: 体育与健康 | F186: 74.25 | G186: 178 | H186: 是 | I186: 3 | J186: 31
A187: 185 | B187: 胡水树 | C187: 20250505011703 | D187: 小学 | E187: 体育与健康 | F187: 74 | G187: 185 | H187: 是 | I187: 7 | J187: 7
A188: 186 | B188: 何鑫 | C188: 20250505011923 | D188: 小学 | E188: 体育与健康 | F188: 74 | G188: 185 | H188: 是 | I188: 3 | J188: 18
A189: 187 | B189: 李雄滔 | C189: 20250505012017 | D189: 小学 | E189: 体育与健康 | F189: 74 | G189: 185 | H189: 是 | I189: 1 | J189: 9
A190: 188 | B190: 雷音诗 | C190: 20250505014827 | D190: 小学 | E190: 体育与健康 | F190: 74 | G190: 185 | H190: 是 | I190: 4 | J190: 27
A191: 189 | B191: 漆恒 | C191: 20250505015119 | D191: 小学 | E191: 体育与健康 | F191: 74 | G191: 185 | H191: 是 | I191: 2 | J191: 25
A192: 190 | B192: 麻罗根 | C192: 20250505015417 | D192: 小学 | E192: 体育与健康 | F192: 74 | G192: 185 | H192: 是 | I192: 2 | J192: 1
A193: 191 | B193: 罗宁艳 | C193: 20250505015609 | D193: 小学 | E193: 体育与健康 | F193: 74 | G193: 185 | H193: 是 | I193: 4 | J193: 3
A194: 192 | B194: 蒋胜明 | C194: 20250505015924 | D194: 小学 | E194: 体育与健康 | F194: 74 | G194: 185 | H194: 是 | I194: 5 | J194: 3
A195: 193 | B195: 侯志豪 | C195: 20250505017024 | D195: 小学 | E195: 体育与健康 | F195: 74 | G195: 185 | H195: 是 | I195: 6 | J195: 2
A196: 194 | B196: 王磊 | C196: 20250505017124 | D196: 小学 | E196: 体育与健康 | F196: 74 | G196: 185 | H196: 是 | I196: 5 | J196: 11
A197: 195 | B197: 叶红丹 | C197: 20250505017308 | D197: 小学 | E197: 体育与健康 | F197: 74 | G197: 185 | H197: 是 | I197: 3 | J197: 22
A198: 196 | B198: 吴仕平 | C198: 20250505017523 | D198: 小学 | E198: 体育与健康 | F198: 74 | G198: 185 | H198: 是 | I198: 4 | J198: 22
A199: 197 | B199: 吴邦云 | C199: 20250505017914 | D199: 小学 | E199: 体育与健康 | F199: 74 | G199: 185 | H199: 是 | I199: 6 | J199: 20
A200: 198 | B200: 韦小雨 | C200: 20250505011522 | D200: 小学 | E200: 体育与健康 | F200: 73.75 | G200: 198 | H200: 是 | I200: 1 | J200: 21
... 593 more rows

Sheet Sheet2
A1: 2025年织金县特岗计划教师招聘笔试成绩
A2: 序号 | B2: 姓名 | C2: 准考证号 | D2: 学段 | E2: 学科 | F2: 成绩 | G2: 笔试排名 | H2: 是否进入面试 | I2: 面试室 | J2: 面试序号 | K2: 面试成绩 | L2: 面试成绩
A3: 225 | B3: 陈哲溢 | C3: 20250505015122 | D3: 小学 | E3: 体育与健康 | F3: 73.25 | G3: 219 | H3: 是 | I3: 1 | J3: 1 | K3: 82.24 | L3: 82.24 | N3: =SUMPRODUCT(--(($T$3:$T$793=T3)*($U$3:$U$793>U3))+1)-790 -> 198 | O3: =SUMPRODUCT(--(($R$3:$R$793=R3)*($S$3:$S$793>S3))+1)-790 -> 198 | P3: =N3=O3 -> TRUE | R3: =D3&E3 -> 小学体育与健康 | S3: =F3*0.5+L3*0.5 -> 77.745 | T3: =D3&E3 -> 小学体育与健康 | U3: =F3*0.5+K3*0.5 -> 77.745 | V3: =F3*0.5+L3*0.5 -> 77.745
A4: 171 | B4: 罗金翠 | C4: 20250505018106 | D4: 小学 | E4: 体育与健康 | F4: 74.75 | G4: 170 | H4: 是 | I4: 1 | J4: 2 | K4: 80.08 | L4: 80.08 | N4: =SUMPRODUCT(--(($T$3:$T$793=T4)*($U$3:$U$793>U4))+1)-790 -> 206 | O4: =SUMPRODUCT(--(($R$3:$R$793=R4)*($S$3:$S$793>S4))+1)-790 -> 206 | P4: TRUE | R4: 小学体育与健康 | S4: 77.415 | T4: 小学体育与健康 | U4: 77.415 | V4: 77.415
A5: 219 | B5: 赵润 | C5: 20250505011401 | D5: 小学 | E5: 体育与健康 | F5: 73.25 | G5: 219 | H5: 是 | I5: 1 | J5: 3 | K5: 79.1 | L5: 79.1 | N5: =SUMPRODUCT(--(($T$3:$T$793=T5)*($U$3:$U$793>U5))+1)-790 -> 224 | O5: =SUMPRODUCT(--(($R$3:$R$793=R5)*($S$3:$S$793>S5))+1)-790 -> 224 | P5: TRUE | R5: 小学体育与健康 | S5: 76.175 | T5: 小学体育与健康 | U5: 76.175 | V5: 76.175
A6: 19 | B6: 曾春香 | C6: 20250505016518 | D6: 小学 | E6: 体育与健康 | F6: 82.25 | G6: 19 | H6: 是 | I6: 1 | J6: 4 | K6: 84.22 | L6: 84.22 | N6: =SUMPRODUCT(--(($T$3:$T$793=T6)*($U$3:$U$793>U6))+1)-790 -> 31 | O6: =SUMPRODUCT(--(($R$3:$R$793=R6)*($S$3:$S$793>S6))+1)-790 -> 31 | P6: TRUE | R6: 小学体育与健康 | S6: 83.235 | T6: 小学体育与健康 | U6: 83.235 | V6: 83.235
A7: 172 | B7: 佘昊文 | C7: 20250505013806 | D7: 小学 | E7: 体育与健康 | F7: 74.5 | G7: 172 | H7: 是 | I7: 1 | J7: 5 | K7: 80.66 | L7: 80.66 | N7: =SUMPRODUCT(--(($T$3:$T$793=T7)*($U$3:$U$793>U7))+1)-790 -> 202 | O7: =SUMPRODUCT(--(($R$3:$R$793=R7)*($S$3:$S$793>S7))+1)-790 -> 202 | P7: TRUE | R7: 小学体育与健康 | S7: 77.58 | T7: 小学体育与健康 | U7: 77.58 | V7: 77.58
A8: 101 | B8: 陈章喜 | C8: 20250505015112 | D8: 小学 | E8: 体育与健康 | F8: 76.75 | G8: 99 | H8: 是 | I8: 1 | J8: 6 | K8: 81.94 | L8: 81.94 | N8: =SUMPRODUCT(--(($T$3:$T$793=T8)*($U$3:$U$793>U8))+1)-790 -> 155 | O8: =SUMPRODUCT(--(($R$3:$R$793=R8)*($S$3:$S$793>S8))+1)-790 -> 155 | P8: TRUE | R8: 小学体育与健康 | S8: 79.345 | T8: 小学体育与健康 | U8: 79.345 | V8: 79.345
A9: 156 | B9: 江琴 | C9: 20250505015825 | D9: 小学 | E9: 体育与健康 | F9: 75.25 | G9: 150 | H9: 是 | I9: 1 | J9: 7 | K9: 82.4 | L9: 82.4 | N9: =SUMPRODUCT(--(($T$3:$T$793=T9)*($U$3:$U$793>U9))+1)-790 -> 171 | O9: =SUMPRODUCT(--(($R$3:$R$793=R9)*($S$3:$S$793>S9))+1)-790 -> 171 | P9: TRUE | R9: 小学体育与健康 | S9: 78.825 | T9: 小学体育与健康 | U9: 78.825 | V9: 78.825
A10: 120 | B10: 李海涛 | C10: 20250505011920 | D10: 小学 | E10: 体育与健康 | F10: 76 | G10: 120 | H10: 是 | I10: 1 | J10: 8 | K10: 84.12 | L10: 84.12 | N10: =SUMPRODUCT(--(($T$3:$T$793=T10)*($U$3:$U$793>U10))+1)-790 -> 135 | O10: =SUMPRODUCT(--(($R$3:$R$793=R10)*($S$3:$S$793>S10))+1)-790 -> 135 | P10: TRUE | R10: 小学体育与健康 | S10: 80.06 | T10: 小学体育与健康 | U10: 80.06 | V10: 80.06
A11: 187 | B11: 李雄滔 | C11: 20250505012017 | D11: 小学 | E11: 体育与健康 | F11: 74 | G11: 185 | H11: 是 | I11: 1 | J11: 9 | K11: 74.5 | L11: 74.5 | N11: =SUMPRODUCT(--(($T$3:$T$793=T11)*($U$3:$U$793>U11))+1)-790 -> 225 | O11: =SUMPRODUCT(--(($R$3:$R$793=R11)*($S$3:$S$793>S11))+1)-790 -> 225 | P11: TRUE | R11: 小学体育与健康 | S11: 74.25 | T11: 小学体育与健康 | U11: 74.25 | V11: 74.25
A12: 90 | B12: 杨世民 | C12: 20250505014818 | D12: 小学 | E12: 体育与健康 | F12: 77.25 | G12: 89 | H12: 是 | I12: 1 | J12: 10 | K12: 82.84 | L12: 82.84 | N12: =SUMPRODUCT(--(($T$3:$T$793=T12)*($U$3:$U$793>U12))+1)-790 -> 136 | O12: =SUMPRODUCT(--(($R$3:$R$793=R12)*($S$3:$S$793>S12))+1)-790 -> 136 | P12: TRUE | R12: 小学体育与健康 | S12: 80.045 | T12: 小学体育与健康 | U12: 80.045 | V12: 80.045
A13: 143 | B13: 彭东 | C13: 20250505016005 | D13: 小学 | E13: 体育与健康 | F13: 75.5 | G13: 138 | H13: 是 | I13: 1 | J13: 11 | K13: 81.76 | L13: 81.76 | N13: =SUMPRODUCT(--(($T$3:$T$793=T13)*($U$3:$U$793>U13))+1)-790 -> 179 | O13: =SUMPRODUCT(--(($R$3:$R$793=R13)*($S$3:$S$793>S13))+1)-790 -> 179 | P13: TRUE | R13: 小学体育与健康 | S13: 78.63 | T13: 小学体育与健康 | U13: 78.63 | V13: 78.63
A14: 153 | B14: 陈磊 | C14: 20250505013405 | D14: 小学 | E14: 体育与健康 | F14: 75.25 | G14: 150 | H14: 是 | I14: 1 | J14: 12 | K14: 83.36 | L14: 83.36 | N14: =SUMPRODUCT(--(($T$3:$T$793=T14)*($U$3:$U$793>U14))+1)-790 -> 157 | O14: =SUMPRODUCT(--(($R$3:$R$793=R14)*($S$3:$S$793>S14))+1)-790 -> 157 | P14: TRUE | R14: 小学体育与健康 | S14: 79.305 | T14: 小学体育与健康 | U14: 79.305 | V14: 79.305
A15: 9 | B15: 班斯念 | C15: 20250505014702 | D15: 小学 | E15: 体育与健康 | F15: 84 | G15: 9 | H15: 是 | I15: 1 | J15: 13 | K15: 82.24 | L15: 82.24 | N15: =SUMPRODUCT(--(($T$3:$T$793=T15)*($U$3:$U$793>U15))+1)-790 -> 35 | O15: =SUMPRODUCT(--(($R$3:$R$793=R15)*($S$3:$S$793>S15))+1)-790 -> 35 | P15: TRUE | R15: 小学体育与健康 | S15: 83.12 | T15: 小学体育与健康 | U15: 83.12 | V15: 83.12
A16: 17 | B16: 吴龙 | C16: 20250505015314 | D16: 小学 | E16: 体育与健康 | F16: 82.5 | G16: 15 | H16: 是 | I16: 1 | J16: 14 | K16: 82.52 | L16: 82.52 | N16: =SUMPRODUCT(--(($T$3:$T$793=T16)*($U$3:$U$793>U16))+1)-790 -> 49 | O16: =SUMPRODUCT(--(($R$3:$R$793=R16)*($S$3:$S$793>S16))+1)-790 -> 49 | P16: TRUE | R16: 小学体育与健康 | S16: 82.51 | T16: 小学体育与健康 | U16: 82.51 | V16: 82.51
A17: 183 | B17: 王燕强 | C17: 20250505015007 | D17: 小学 | E17: 体育与健康 | F17: 74.25 | G17: 178 | H17: 是 | I17: 1 | J17: 15 | K17: 83.22 | L17: 83.22 | N17: =SUMPRODUCT(--(($T$3:$T$793=T17)*($U$3:$U$793>U17))+1)-790 -> 175 | O17: =SUMPRODUCT(--(($R$3:$R$793=R17)*($S$3:$S$793>S17))+1)-790 -> 175 | P17: TRUE | R17: 小学体育与健康 | S17: 78.735 | T17: 小学体育与健康 | U17: 78.735 | V17: 78.735
A18: 170 | B18: 金远豪 | C18: 20250505011404 | D18: 小学 | E18: 体育与健康 | F18: 74.75 | G18: 170 | H18: 是 | I18: 1 | J18: 16 | K18: 80.36 | L18: 80.36 | N18: =SUMPRODUCT(--(($T$3:$T$793=T18)*($U$3:$U$793>U18))+1)-790 -> 203 | O18: =SUMPRODUCT(--(($R$3:$R$793=R18)*($S$3:$S$793>S18))+1)-790 -> 203 | P18: TRUE | R18: 小学体育与健康 | S18: 77.555 | T18: 小学体育与健康 | U18: 77.555 | V18: 77.555
A19: 177 | B19: 邰永才 | C19: 20250505017916 | D19: 小学 | E19: 体育与健康 | F19: 74.5 | G19: 172 | H19: 是 | I19: 1 | J19: 17 | K19: 80.86 | L19: 80.86 | N19: =SUMPRODUCT(--(($T$3:$T$793=T19)*($U$3:$U$793>U19))+1)-790 -> 200 | O19: =SUMPRODUCT(--(($R$3:$R$793=R19)*($S$3:$S$793>S19))+1)-790 -> 200 | P19: TRUE | R19: 小学体育与健康 | S19: 77.68 | T19: 小学体育与健康 | U19: 77.68 | V19: 77.68
A20: 125 | B20: 朱浪 | C20: 20250505014418 | D20: 小学 | E20: 体育与健康 | F20: 76 | G20: 120 | H20: 是 | I20: 1 | J20: 19 | K20: 85.04 | L20: 85.04 | N20: =SUMPRODUCT(--(($T$3:$T$793=T20)*($U$3:$U$793>U20))+1)-790 -> 118 | O20: =SUMPRODUCT(--(($R$3:$R$793=R20)*($S$3:$S$793>S20))+1)-790 -> 118 | P20: TRUE | R20: 小学体育与健康 | S20: 80.52 | T20: 小学体育与健康 | U20: 80.52 | V20: 80.52
A21: 223 | B21: 鲁清晨 | C21: 20250505014116 | D21: 小学 | E21: 体育与健康 | F21: 73.25 | G21: 219 | H21: 是 | I21: 1 | J21: 20 | K21: 83.16 | L21: 83.16 | N21: =SUMPRODUCT(--(($T$3:$T$793=T21)*($U$3:$U$793>U21))+1)-790 -> 189 | O21: =SUMPRODUCT(--(($R$3:$R$793=R21)*($S$3:$S$793>S21))+1)-790 -> 189 | P21: TRUE | R21: 小学体育与健康 | S21: 78.205 | T21: 小学体育与健康 | U21: 78.205 | V21: 78.205
A22: 198 | B22: 韦小雨 | C22: 20250505011522 | D22: 小学 | E22: 体育与健康 | F22: 73.75 | G22: 198 | H22: 是 | I22: 1 | J22: 21 | K22: 80.9 | L22: 80.9 | N22: =SUMPRODUCT(--(($T$3:$T$793=T22)*($U$3:$U$793>U22))+1)-790 -> 209 | O22: =SUMPRODUCT(--(($R$3:$R$793=R22)*($S$3:$S$793>S22))+1)-790 -> 209 | P22: TRUE | R22: 小学体育与健康 | S22: 77.325 | T22: 小学体育与健康 | U22: 77.325 | V22: 77.325
A23: 18 | B23: 黄文玲 | C23: 20250505016114 | D23: 小学 | E23: 体育与健康 | F23: 82.5 | G23: 15 | H23: 是 | I23: 1 | J23: 22 | K23: 84.78 | L23: 84.78 | N23: =SUMPRODUCT(--(($T$3:$T$793=T23)*($U$3:$U$793>U23))+1)-790 -> 24 | O23: =SUMPRODUCT(--(($R$3:$R$793=R23)*($S$3:$S$793>S23))+1)-790 -> 24 | P23: TRUE | R23: 小学体育与健康 | S23: 83.64 | T23: 小学体育与健康 | U23: 83.64 | V23: 83.64
A24: 133 | B24: 王芳 | C24: 20250505011511 | D24: 小学 | E24: 体育与健康 | F24: 75.75 | G24: 133 | H24: 是 | I24: 1 | J24: 23 | K24: 84.86 | L24: 84.86 | N24: =SUMPRODUCT(--(($T$3:$T$793=T24)*($U$3:$U$793>U24))+1)-790 -> 126 | O24: =SUMPRODUCT(--(($R$3:$R$793=R24)*($S$3:$S$793>S24))+1)-790 -> 126 | P24: TRUE | R24: 小学体育与健康 | S24: 80.305 | T24: 小学体育与健康 | U24: 80.305 | V24: 80.305
A25: 39 | B25: 姜大婷 | C25: 20250505016329 | D25: 小学 | E25: 体育与健康 | F25: 79.75 | G25: 39 | H25: 是 | I25: 1 | J25: 24 | K25: 82.64 | L25: 82.64 | N25: =SUMPRODUCT(--(($T$3:$T$793=T25)*($U$3:$U$793>U25))+1)-790 -> 95 | O25: =SUMPRODUCT(--(($R$3:$R$793=R25)*($S$3:$S$793>S25))+1)-790 -> 95 | P25: TRUE | R25: 小学体育与健康 | S25: 81.195 | T25: 小学体育与健康 | U25: 81.195 | V25: 81.195
A26: 232 | B26: 张桂 | C26: 20250505013828 | D26: 小学 | E26: 体育与健康 | F26: 73 | G26: 230 | H26: 是 | I26: 1 | J26: 25 | K26: 82.82 | L26: 82.82 | N26: =SUMPRODUCT(--(($T$3:$T$793=T26)*($U$3:$U$793>U26))+1)-790 -> 196 | O26: =SUMPRODUCT(--(($R$3:$R$793=R26)*($S$3:$S$793>S26))+1)-790 -> 196 | P26: TRUE | R26: 小学体育与健康 | S26: 77.91 | T26: 小学体育与健康 | U26: 77.91 | V26: 77.91
A27: 38 | B27: 盛香艳 | C27: 20250505011830 | D27: 小学 | E27: 体育与健康 | F27: 80 | G27: 36 | H27: 是 | I27: 1 | J27: 27 | K27: 81.52 | L27: 81.52 | N27: =SUMPRODUCT(--(($T$3:$T$793=T27)*($U$3:$U$793>U27))+1)-790 -> 109 | O27: =SUMPRODUCT(--(($R$3:$R$793=R27)*($S$3:$S$793>S27))+1)-790 -> 109 | P27: TRUE | R27: 小学体育与健康 | S27: 80.76 | T27: 小学体育与健康 | U27: 80.76 | V27: 80.76
A28: 200 | B28: 吴晋 | C28: 20250505015018 | D28: 小学 | E28: 体育与健康 | F28: 73.75 | G28: 198 | H28: 是 | I28: 1 | J28: 28 | K28: 82.06 | L28: 82.06 | N28: =SUMPRODUCT(--(($T$3:$T$793=T28)*($U$3:$U$793>U28))+1)-790 -> 197 | O28: =SUMPRODUCT(--(($R$3:$R$793=R28)*($S$3:$S$793>S28))+1)-790 -> 197 | P28: TRUE | R28: 小学体育与健康 | S28: 77.905 | T28: 小学体育与健康 | U28: 77.905 | V28: 77.905
A29: 78 | B29: 杨美美 | C29: 20250505015604 | D29: 小学 | E29: 体育与健康 | F29: 78 | G29: 72 | H29: 是 | I29: 1 | J29: 29 | K29: 83.28 | L29: 83.28 | N29: =SUMPRODUCT(--(($T$3:$T$793=T29)*($U$3:$U$793>U29))+1)-790 -> 111 | O29: =SUMPRODUCT(--(($R$3:$R$793=R29)*($S$3:$S$793>S29))+1)-790 -> 111 | P29: TRUE | R29: 小学体育与健康 | S29: 80.64 | T29: 小学体育与健康 | U29: 80.64 | V29: 80.64
A30: 152 | B30: 罗飞 | C30: 20250505013025 | D30: 小学 | E30: 体育与健康 | F30: 75.25 | G30: 150 | H30: 是 | I30: 1 | J30: 30 | K30: 84.3 | L30: 84.3 | N30: =SUMPRODUCT(--(($T$3:$T$793=T30)*($U$3:$U$793>U30))+1)-790 -> 141 | O30: =SUMPRODUCT(--(($R$3:$R$793=R30)*($S$3:$S$793>S30))+1)-790 -> 141 | P30: TRUE | R30: 小学体育与健康 | S30: 79.775 | T30: 小学体育与健康 | U30: 79.775 | V30: 79.775
A31: 92 | B31: 陈思娣 | C31: 20250505012124 | D31: 小学 | E31: 体育与健康 | F31: 77 | G31: 91 | H31: 是 | I31: 1 | J31: 31 | K31: 83.46 | L31: 83.46 | N31: =SUMPRODUCT(--(($T$3:$T$793=T31)*($U$3:$U$793>U31))+1)-790 -> 128 | O31: =SUMPRODUCT(--(($R$3:$R$793=R31)*($S$3:$S$793>S31))+1)-790 -> 128 | P31: TRUE | R31: 小学体育与健康 | S31: 80.23 | T31: 小学体育与健康 | U31: 80.23 | V31: 80.23
A32: 190 | B32: 麻罗根 | C32: 20250505015417 | D32: 小学 | E32: 体育与健康 | F32: 74 | G32: 185 | H32: 是 | I32: 2 | J32: 1 | K32: 84.3 | L32: 84.3 | N32: =SUMPRODUCT(--(($T$3:$T$793=T32)*($U$3:$U$793>U32))+1)-790 -> 165 | O32: =SUMPRODUCT(--(($R$3:$R$793=R32)*($S$3:$S$793>S32))+1)-790 -> 165 | P32: TRUE | R32: 小学体育与健康 | S32: 79.15 | T32: 小学体育与健康 | U32: 79.15 | V32: 79.15
A33: 61 | B33: 程海 | C33: 20250505012411 | D33: 小学 | E33: 体育与健康 | F33: 78.5 | G33: 61 | H33: 是 | I33: 2 | J33: 2 | K33: 83.9 | L33: 83.9 | N33: =SUMPRODUCT(--(($T$3:$T$793=T33)*($U$3:$U$793>U33))+1)-790 -> 94 | O33: =SUMPRODUCT(--(($R$3:$R$793=R33)*($S$3:$S$793>S33))+1)-790 -> 94 | P33: TRUE | R33: 小学体育与健康 | S33: 81.2 | T33: 小学体育与健康 | U33: 81.2 | V33: 81.2
A34: 103 | B34: 王宇 | C34: 20250505016510 | D34: 小学 | E34: 体育与健康 | F34: 76.75 | G34: 99 | H34: 是 | I34: 2 | J34: 3 | K34: 87.16 | L34: 87.16 | N34: =SUMPRODUCT(--(($T$3:$T$793=T34)*($U$3:$U$793>U34))+1)-790 -> 73 | O34: =SUMPRODUCT(--(($R$3:$R$793=R34)*($S$3:$S$793>S34))+1)-790 -> 73 | P34: TRUE | R34: 小学体育与健康 | S34: 81.955 | T34: 小学体育与健康 | U34: 81.955 | V34: 81.955
A35: 56 | B35: 陈天菊 | C35: 20250505014316 | D35: 小学 | E35: 体育与健康 | F35: 79 | G35: 53 | H35: 是 | I35: 2 | J35: 4 | K35: 87.4 | L35: 87.4 | N35: =SUMPRODUCT(--(($T$3:$T$793=T35)*($U$3:$U$793>U35))+1)-790 -> 33 | O35: =SUMPRODUCT(--(($R$3:$R$793=R35)*($S$3:$S$793>S35))+1)-790 -> 33 | P35: TRUE | R35: 小学体育与健康 | S35: 83.2 | T35: 小学体育与健康 | U35: 83.2 | V35: 83.2
A36: 30 | B36: 谢兴鹅 | C36: 20250505017310 | D36: 小学 | E36: 体育与健康 | F36: 80.75 | G36: 28 | H36: 是 | I36: 2 | J36: 5 | K36: 85.64 | L36: 85.64 | N36: =SUMPRODUCT(--(($T$3:$T$793=T36)*($U$3:$U$793>U36))+1)-790 -> 34 | O36: =SUMPRODUCT(--(($R$3:$R$793=R36)*($S$3:$S$793>S36))+1)-790 -> 34 | P36: TRUE | R36: 小学体育与健康 | S36: 83.195 | T36: 小学体育与健康 | U36: 83.195 | V36: 83.195
A37: 54 | B37: 罗国梅 | C37: 20250505013803 | D37: 小学 | E37: 体育与健康 | F37: 79 | G37: 53 | H37: 是 | I37: 2 | J37: 6 | K37: 85.32 | L37: 85.32 | N37: =SUMPRODUCT(--(($T$3:$T$793=T37)*($U$3:$U$793>U37))+1)-790 -> 64 | O37: =SUMPRODUCT(--(($R$3:$R$793=R37)*($S$3:$S$793>S37))+1)-790 -> 64 | P37: TRUE | R37: 小学体育与健康 | S37: 82.16 | T37: 小学体育与健康 | U37: 82.16 | V37: 82.16
A38: 85 | B38: 肖寨 | C38: 20250505013504 | D38: 小学 | E38: 体育与健康 | F38: 77.5 | G38: 81 | H38: 是 | I38: 2 | J38: 7 | K38: 84.4 | L38: 84.4 | N38: =SUMPRODUCT(--(($T$3:$T$793=T38)*($U$3:$U$793>U38))+1)-790 -> 102 | O38: =SUMPRODUCT(--(($R$3:$R$793=R38)*($S$3:$S$793>S38))+1)-790 -> 102 | P38: TRUE | R38: 小学体育与健康 | S38: 80.95 | T38: 小学体育与健康 | U38: 80.95 | V38: 80.95
A39: 112 | B39: 汤清楚 | C39: 20250505017810 | D39: 小学 | E39: 体育与健康 | F39: 76.5 | G39: 105 | H39: 是 | I39: 2 | J39: 9 | K39: 86.68 | L39: 86.68 | N39: =SUMPRODUCT(--(($T$3:$T$793=T39)*($U$3:$U$793>U39))+1)-790 -> 87 | O39: =SUMPRODUCT(--(($R$3:$R$793=R39)*($S$3:$S$793>S39))+1)-790 -> 87 | P39: TRUE | R39: 小学体育与健康 | S39: 81.59 | T39: 小学体育与健康 | U39: 81.59 | V39: 81.59
A40: 174 | B40: 王兵 | C40: 20250505014321 | D40: 小学 | E40: 体育与健康 | F40: 74.5 | G40: 172 | H40: 是 | I40: 2 | J40: 10 | K40: 85.04 | L40: 85.04 | N40: =SUMPRODUCT(--(($T$3:$T$793=T40)*($U$3:$U$793>U40))+1)-790 -> 142 | O40: =SUMPRODUCT(--(($R$3:$R$793=R40)*($S$3:$S$793>S40))+1)-790 -> 142 | P40: TRUE | R40: 小学体育与健康 | S40: 79.77 | T40: 小学体育与健康 | U40: 79.77 | V40: 79.77
A41: 226 | B41: 张林冲 | C41: 20250505016711 | D41: 小学 | E41: 体育与健康 | F41: 73.25 | G41: 219 | H41: 是 | I41: 2 | J41: 11 | K41: 87.54 | L41: 87.54 | N41: =SUMPRODUCT(--(($T$3:$T$793=T41)*($U$3:$U$793>U41))+1)-790 -> 124 | O41: =SUMPRODUCT(--(($R$3:$R$793=R41)*($S$3:$S$793>S41))+1)-790 -> 124 | P41: TRUE | R41: 小学体育与健康 | S41: 80.395 | T41: 小学体育与健康 | U41: 80.395 | V41: 80.395
A42: 28 | B42: 卢超 | C42: 20250505013512 | D42: 小学 | E42: 体育与健康 | F42: 80.75 | G42: 28 | H42: 是 | I42: 2 | J42: 12 | K42: 90.28 | L42: 90.28 | N42: =SUMPRODUCT(--(($T$3:$T$793=T42)*($U$3:$U$793>U42))+1)-790 -> 3 | O42: =SUMPRODUCT(--(($R$3:$R$793=R42)*($S$3:$S$793>S42))+1)-790 -> 3 | P42: TRUE | R42: 小学体育与健康 | S42: 85.515 | T42: 小学体育与健康 | U42: 85.515 | V42: 85.515
A43: 238 | B43: 袁永敏 | C43: 20250505011725 | D43: 小学 | E43: 体育与健康 | F43: 72.75 | G43: 238 | H43: 是 | I43: 2 | J43: 13 | K43: 87.22 | L43: 87.22 | N43: =SUMPRODUCT(--(($T$3:$T$793=T43)*($U$3:$U$793>U43))+1)-790 -> 137 | O43: =SUMPRODUCT(--(($R$3:$R$793=R43)*($S$3:$S$793>S43))+1)-790 -> 137 | P43: TRUE | R43: 小学体育与健康 | S43: 79.985 | T43: 小学体育与健康 | U43: 79.985 | V43: 79.985
A44: 55 | B44: 刘行 | C44: 20250505014209 | D44: 小学 | E44: 体育与健康 | F44: 79 | G44: 53 | H44: 是 | I44: 2 | J44: 14 | K44: 85.56 | L44: 85.56 | N44: =SUMPRODUCT(--(($T$3:$T$793=T44)*($U$3:$U$793>U44))+1)-790 -> 58 | O44: =SUMPRODUCT(--(($R$3:$R$793=R44)*($S$3:$S$793>S44))+1)-790 -> 58 | P44: TRUE | R44: 小学体育与健康 | S44: 82.28 | T44: 小学体育与健康 | U44: 82.28 | V44: 82.28
A45: 48 | B45: 赵臣艺 | C45: 20250505018018 | D45: 小学 | E45: 体育与健康 | F45: 79.5 | G45: 41 | H45: 是 | I45: 2 | J45: 15 | K45: 87 | L45: 87 | N45: =SUMPRODUCT(--(($T$3:$T$793=T45)*($U$3:$U$793>U45))+1)-790 -> 30 | O45: =SUMPRODUCT(--(($R$3:$R$793=R45)*($S$3:$S$793>S45))+1)-790 -> 30 | P45: TRUE | R45: 小学体育与健康 | S45: 83.25 | T45: 小学体育与健康 | U45: 83.25 | V45: 83.25
A46: 35 | B46: 吴昌燕 | C46: 20250505015010 | D46: 小学 | E46: 体育与健康 | F46: 80.25 | G46: 34 | H46: 是 | I46: 2 | J46: 16 | K46: 89.02 | L46: 89.02 | N46: =SUMPRODUCT(--(($T$3:$T$793=T46)*($U$3:$U$793>U46))+1)-790 -> 13 | O46: =SUMPRODUCT(--(($R$3:$R$793=R46)*($S$3:$S$793>S46))+1)-790 -> 13 | P46: TRUE | R46: 小学体育与健康 | S46: 84.635 | T46: 小学体育与健康 | U46: 84.635 | V46: 84.635
A47: 161 | B47: 李影 | C47: 20250505012213 | D47: 小学 | E47: 体育与健康 | F47: 75 | G47: 159 | H47: 是 | I47: 2 | J47: 17 | K47: 87.26 | L47: 87.26 | N47: =SUMPRODUCT(--(($T$3:$T$793=T47)*($U$3:$U$793>U47))+1)-790 -> 97 | O47: =SUMPRODUCT(--(($R$3:$R$793=R47)*($S$3:$S$793>S47))+1)-790 -> 97 | P47: TRUE | R47: 小学体育与健康 | S47: 81.13 | T47: 小学体育与健康 | U47: 81.13 | V47: 81.13
A48: 141 | B48: 杨胜全 | C48: 20250505015029 | D48: 小学 | E48: 体育与健康 | F48: 75.5 | G48: 138 | H48: 是 | I48: 2 | J48: 18 | K48: 87.2 | L48: 87.2 | N48: =SUMPRODUCT(--(($T$3:$T$793=T48)*($U$3:$U$793>U48))+1)-790 -> 91 | O48: =SUMPRODUCT(--(($R$3:$R$793=R48)*($S$3:$S$793>S48))+1)-790 -> 91 | P48: TRUE | R48: 小学体育与健康 | S48: 81.35 | T48: 小学体育与健康 | U48: 81.35 | V48: 81.35
A49: 132 | B49: 朱晓雪 | C49: 20250505017419 | D49: 小学 | E49: 体育与健康 | F49: 76 | G49: 120 | H49: 是 | I49: 2 | J49: 20 | K49: 87.22 | L49: 87.22 | N49: =SUMPRODUCT(--(($T$3:$T$793=T49)*($U$3:$U$793>U49))+1)-790 -> 85 | O49: =SUMPRODUCT(--(($R$3:$R$793=R49)*($S$3:$S$793>S49))+1)-790 -> 85 | P49: TRUE | R49: 小学体育与健康 | S49: 81.61 | T49: 小学体育与健康 | U49: 81.61 | V49: 81.61
A50: 160 | B50: 徐亮秋 | C50: 20250505011812 | D50: 小学 | E50: 体育与健康 | F50: 75 | G50: 159 | H50: 是 | I50: 2 | J50: 21 | K50: 82.14 | L50: 82.14 | N50: =SUMPRODUCT(--(($T$3:$T$793=T50)*($U$3:$U$793>U50))+1)-790 -> 180 | O50: =SUMPRODUCT(--(($R$3:$R$793=R50)*($S$3:$S$793>S50))+1)-790 -> 180 | P50: TRUE | R50: 小学体育与健康 | S50: 78.57 | T50: 小学体育与健康 | U50: 78.57 | V50: 78.57
A51: 76 | B51: 马帅帅 | C51: 20250505014622 | D51: 小学 | E51: 体育与健康 | F51: 78 | G51: 72 | H51: 是 | I51: 2 | J51: 23 | K51: 86.54 | L51: 86.54 | N51: =SUMPRODUCT(--(($T$3:$T$793=T51)*($U$3:$U$793>U51))+1)-790 -> 59 | O51: =SUMPRODUCT(--(($R$3:$R$793=R51)*($S$3:$S$793>S51))+1)-790 -> 59 | P51: TRUE | R51: 小学体育与健康 | S51: 82.27 | T51: 小学体育与健康 | U51: 82.27 | V51: 82.27
A52: 136 | B52: 舒微 | C52: 20250505014910 | D52: 小学 | E52: 体育与健康 | F52: 75.75 | G52: 133 | H52: 是 | I52: 2 | J52: 24 | K52: 88.4 | L52: 88.4 | N52: =SUMPRODUCT(--(($T$3:$T$793=T52)*($U$3:$U$793>U52))+1)-790 -> 67 | O52: =SUMPRODUCT(--(($R$3:$R$793=R52)*($S$3:$S$793>S52))+1)-790 -> 67 | P52: TRUE | R52: 小学体育与健康 | S52: 82.075 | T52: 小学体育与健康 | U52: 82.075 | V52: 82.075
A53: 189 | B53: 漆恒 | C53: 20250505015119 | D53: 小学 | E53: 体育与健康 | F53: 74 | G53: 185 | H53: 是 | I53: 2 | J53: 25 | K53: 88.08 | L53: 88.08 | N53: =SUMPRODUCT(--(($T$3:$T$793=T53)*($U$3:$U$793>U53))+1)-790 -> 100 | O53: =SUMPRODUCT(--(($R$3:$R$793=R53)*($S$3:$S$793>S53))+1)-790 -> 100 | P53: TRUE | R53: 小学体育与健康 | S53: 81.04 | T53: 小学体育与健康 | U53: 81.04 | V53: 81.04
A54: 175 | B54: 陈霞 | C54: 20250505014930 | D54: 小学 | E54: 体育与健康 | F54: 74.5 | G54: 172 | H54: 是 | I54: 2 | J54: 26 | K54: 84.64 | L54: 84.64 | N54: =SUMPRODUCT(--(($T$3:$T$793=T54)*($U$3:$U$793>U54))+1)-790 -> 149 | O54: =SUMPRODUCT(--(($R$3:$R$793=R54)*($S$3:$S$793>S54))+1)-790 -> 149 | P54: TRUE | R54: 小学体育与健康 | S54: 79.57 | T54: 小学体育与健康 | U54: 79.57 | V54: 79.57
A55: 236 | B55: 郭亨红 | C55: 20250505017323 | D55: 小学 | E55: 体育与健康 | F55: 73 | G55: 230 | H55: 是 | I55: 2 | J55: 27 | K55: 84.5 | L55: 84.5 | N55: =SUMPRODUCT(--(($T$3:$T$793=T55)*($U$3:$U$793>U55))+1)-790 -> 173 | O55: =SUMPRODUCT(--(($R$3:$R$793=R55)*($S$3:$S$793>S55))+1)-790 -> 173 | P55: TRUE | R55: 小学体育与健康 | S55: 78.75 | T55: 小学体育与健康 | U55: 78.75 | V55: 78.75
A56: 41 | B56: 张训 | C56: 20250505012916 | D56: 小学 | E56: 体育与健康 | F56: 79.5 | G56: 41 | H56: 是 | I56: 2 | J56: 28 | K56: 85.2 | L56: 85.2 | N56: =SUMPRODUCT(--(($T$3:$T$793=T56)*($U$3:$U$793>U56))+1)-790 -> 52 | O56: =SUMPRODUCT(--(($R$3:$R$793=R56)*($S$3:$S$793>S56))+1)-790 -> 52 | P56: TRUE | R56: 小学体育与健康 | S56: 82.35 | T56: 小学体育与健康 | U56: 82.35 | V56: 82.35
A57: 144 | B57: 李文荣 | C57: 20250505016426 | D57: 小学 | E57: 体育与健康 | F57: 75.5 | G57: 138 | H57: 是 | I57: 2 | J57: 29 | K57: 86.3 | L57: 86.3 | N57: =SUMPRODUCT(--(($T$3:$T$793=T57)*($U$3:$U$793>U57))+1)-790 -> 104 | O57: =SUMPRODUCT(--(($R$3:$R$793=R57)*($S$3:$S$793>S57))+1)-790 -> 104 | P57: TRUE | R57: 小学体育与健康 | S57: 80.9 | T57: 小学体育与健康 | U57: 80.9 | V57: 80.9
A58: 10 | B58: 王桥福 | C58: 20250505017102 | D58: 小学 | E58: 体育与健康 | F58: 83.25 | G58: 10 | H58: 是 | I58: 2 | J58: 30 | K58: 87.4 | L58: 87.4 | N58: =SUMPRODUCT(--(($T$3:$T$793=T58)*($U$3:$U$793>U58))+1)-790 -> 6 | O58: =SUMPRODUCT(--(($R$3:$R$793=R58)*($S$3:$S$793>S58))+1)-790 -> 6 | P58: TRUE | R58: 小学体育与健康 | S58: 85.325 | T58: 小学体育与健康 | U58: 85.325 | V58: 85.325
A59: 138 | B59: 张潘 | C59: 20250505012410 | D59: 小学 | E59: 体育与健康 | F59: 75.5 | G59: 138 | H59: 是 | I59: 2 | J59: 31 | K59: 89.2 | L59: 89.2 | N59: =SUMPRODUCT(--(($T$3:$T$793=T59)*($U$3:$U$793>U59))+1)-790 -> 52 | O59: =SUMPRODUCT(--(($R$3:$R$793=R59)*($S$3:$S$793>S59))+1)-790 -> 52 | P59: TRUE | R59: 小学体育与健康 | S59: 82.35 | T59: 小学体育与健康 | U59: 82.35 | V59: 82.35
A60: 131 | B60: 刘桂兴 | C60: 20250505017402 | D60: 小学 | E60: 体育与健康 | F60: 76 | G60: 120 | H60: 是 | I60: 3 | J60: 1 | K60: 78.5 | L60: 78.5 | N60: =SUMPRODUCT(--(($T$3:$T$793=T60)*($U$3:$U$793>U60))+1)-790 -> 211 | O60: =SUMPRODUCT(--(($R$3:$R$793=R60)*($S$3:$S$793>S60))+1)-790 -> 211 | P60: TRUE | R60: 小学体育与健康 | S60: 77.25 | T60: 小学体育与健康 | U60: 77.25 | V60: 77.25
A61: 118 | B61: 吕开朗 | C61: 20250505017723 | D61: 小学 | E61: 体育与健康 | F61: 76.25 | G61: 113 | H61: 是 | I61: 3 | J61: 2 | K61: 78.82 | L61: 78.82 | N61: =SUMPRODUCT(--(($T$3:$T$793=T61)*($U$3:$U$793>U61))+1)-790 -> 204 | O61: =SUMPRODUCT(--(($R$3:$R$793=R61)*($S$3:$S$793>S61))+1)-790 -> 204 | P61: TRUE | R61: 小学体育与健康 | S61: 77.535 | T61: 小学体育与健康 | U61: 77.535 | V61: 77.535
A62: 142 | B62: 熊鑫 | C62: 20250505015508 | D62: 小学 | E62: 体育与健康 | F62: 75.5 | G62: 138 | H62: 是 | I62: 3 | J62: 3 | K62: 79.7 | L62: 79.7 | N62: =SUMPRODUCT(--(($T$3:$T$793=T62)*($U$3:$U$793>U62))+1)-790 -> 201 | O62: =SUMPRODUCT(--(($R$3:$R$793=R62)*($S$3:$S$793>S62))+1)-790 -> 201 | P62: TRUE | R62: 小学体育与健康 | S62: 77.6 | T62: 小学体育与健康 | U62: 77.6 | V62: 77.6
A63: 8 | B63: 沙锦成 | C63: 20250505015125 | D63: 小学 | E63: 体育与健康 | F63: 84.75 | G63: 8 | H63: 是 | I63: 3 | J63: 4 | K63: 79.58 | L63: 79.58 | N63: =SUMPRODUCT(--(($T$3:$T$793=T63)*($U$3:$U$793>U63))+1)-790 -> 63 | O63: =SUMPRODUCT(--(($R$3:$R$793=R63)*($S$3:$S$793>S63))+1)-790 -> 63 | P63: TRUE | R63: 小学体育与健康 | S63: 82.165 | T63: 小学体育与健康 | U63: 82.165 | V63: 82.165
A64: 12 | B64: 彭丹 | C64: 20250505014916 | D64: 小学 | E64: 体育与健康 | F64: 83 | G64: 11 | H64: 是 | I64: 3 | J64: 5 | K64: 81 | L64: 81 | N64: =SUMPRODUCT(--(($T$3:$T$793=T64)*($U$3:$U$793>U64))+1)-790 -> 71 | O64: =SUMPRODUCT(--(($R$3:$R$793=R64)*($S$3:$S$793>S64))+1)-790 -> 71 | P64: TRUE | R64: 小学体育与健康 | S64: 82 | T64: 小学体育与健康 | U64: 82 | V64: 82
A65: 210 | B65: 袁立明 | C65: 20250505014020 | D65: 小学 | E65: 体育与健康 | F65: 73.5 | G65: 205 | H65: 是 | I65: 3 | J65: 6 | K65: 79.88 | L65: 79.88 | N65: =SUMPRODUCT(--(($T$3:$T$793=T65)*($U$3:$U$793>U65))+1)-790 -> 221 | O65: =SUMPRODUCT(--(($R$3:$R$793=R65)*($S$3:$S$793>S65))+1)-790 -> 221 | P65: TRUE | R65: 小学体育与健康 | S65: 76.69 | T65: 小学体育与健康 | U65: 76.69 | V65: 76.69
A66: 70 | B66: 吉彰化 | C66: 20250505015006 | D66: 小学 | E66: 体育与健康 | F66: 78.25 | G66: 68 | H66: 是 | I66: 3 | J66: 7 | K66: 77.92 | L66: 77.92 | N66: =SUMPRODUCT(--(($T$3:$T$793=T66)*($U$3:$U$793>U66))+1)-790 -> 191 | O66: =SUMPRODUCT(--(($R$3:$R$793=R66)*($S$3:$S$793>S66))+1)-790 -> 191 | P66: TRUE | R66: 小学体育与健康 | S66: 78.085 | T66: 小学体育与健康 | U66: 78.085 | V66: 78.085
A67: 164 | B67: 梁龙江 | C67: 20250505014002 | D67: 小学 | E67: 体育与健康 | F67: 75 | G67: 159 | H67: 是 | I67: 3 | J67: 8 | K67: 82.4 | L67: 82.4 | N67: =SUMPRODUCT(--(($T$3:$T$793=T67)*($U$3:$U$793>U67))+1)-790 -> 176 | O67: =SUMPRODUCT(--(($R$3:$R$793=R67)*($S$3:$S$793>S67))+1)-790 -> 176 | P67: =N67=O67 -> TRUE | R67: =D67&E67 -> 小学体育与健康 | S67: =F67*0.5+L67*0.5 -> 78.7 | T67: =D67&E67 -> 小学体育与健康 | U67: =F67*0.5+K67*0.5 -> 78.7 | V67: =F67*0.5+L67*0.5 -> 78.7
A68: 7 | B68: 肖艳 | C68: 20250505012426 | D68: 小学 | E68: 体育与健康 | F68: 85.25 | G68: 7 | H68: 是 | I68: 3 | J68: 9 | K68: 83.5 | L68: 83.5 | N68: =SUMPRODUCT(--(($T$3:$T$793=T68)*($U$3:$U$793>U68))+1)-790 -> 15 | O68: =SUMPRODUCT(--(($R$3:$R$793=R68)*($S$3:$S$793>S68))+1)-790 -> 15 | P68: TRUE | R68: 小学体育与健康 | S68: 84.375 | T68: 小学体育与健康 | U68: 84.375 | V68: 84.375
A69: 96 | B69: 李小波 | C69: 20250505016127 | D69: 小学 | E69: 体育与健康 | F69: 77 | G69: 91 | H69: 是 | I69: 3 | J69: 10 | K69: 79.72 | L69: 79.72 | N69: =SUMPRODUCT(--(($T$3:$T$793=T69)*($U$3:$U$793>U69))+1)-790 -> 185 | O69: =SUMPRODUCT(--(($R$3:$R$793=R69)*($S$3:$S$793>S69))+1)-790 -> 185 | P69: TRUE | R69: 小学体育与健康 | S69: 78.36 | T69: 小学体育与健康 | U69: 78.36 | V69: 78.36
A70: 199 | B70: 杨玲玲 | C70: 20250505013524 | D70: 小学 | E70: 体育与健康 | F70: 73.75 | G70: 198 | H70: 是 | I70: 3 | J70: 11 | K70: 80.9 | L70: 80.9 | N70: =SUMPRODUCT(--(($T$3:$T$793=T70)*($U$3:$U$793>U70))+1)-790 -> 209 | O70: =SUMPRODUCT(--(($R$3:$R$793=R70)*($S$3:$S$793>S70))+1)-790 -> 209 | P70: TRUE | R70: 小学体育与健康 | S70: 77.325 | T70: 小学体育与健康 | U70: 77.325 | V70: 77.325
A71: 123 | B71: 吴兰 | C71: 20250505013904 | D71: 小学 | E71: 体育与健康 | F71: 76 | G71: 120 | H71: 是 | I71: 3 | J71: 12 | K71: 80.1 | L71: 80.1 | N71: =SUMPRODUCT(--(($T$3:$T$793=T71)*($U$3:$U$793>U71))+1)-790 -> 193 | O71: =SUMPRODUCT(--(($R$3:$R$793=R71)*($S$3:$S$793>S71))+1)-790 -> 193 | P71: TRUE | R71: 小学体育与健康 | S71: 78.05 | T71: 小学体育与健康 | U71: 78.05 | V71: 78.05
A72: 29 | B72: 朱锡芸 | C72: 20250505016015 | D72: 小学 | E72: 体育与健康 | F72: 80.75 | G72: 28 | H72: 是 | I72: 3 | J72: 13 | K72: 81.3 | L72: 81.3 | N72: =SUMPRODUCT(--(($T$3:$T$793=T72)*($U$3:$U$793>U72))+1)-790 -> 101 | O72: =SUMPRODUCT(--(($R$3:$R$793=R72)*($S$3:$S$793>S72))+1)-790 -> 101 | P72: TRUE | R72: 小学体育与健康 | S72: 81.025 | T72: 小学体育与健康 | U72: 81.025 | V72: 81.025
A73: 34 | B73: 谭群 | C73: 20250505013812 | D73: 小学 | E73: 体育与健康 | F73: 80.25 | G73: 34 | H73: 是 | I73: 3 | J73: 14 | K73: 83.68 | L73: 83.68 | N73: =SUMPRODUCT(--(($T$3:$T$793=T73)*($U$3:$U$793>U73))+1)-790 -> 72 | O73: =SUMPRODUCT(--(($R$3:$R$793=R73)*($S$3:$S$793>S73))+1)-790 -> 72 | P73: TRUE | R73: 小学体育与健康 | S73: 81.965 | T73: 小学体育与健康 | U73: 81.965 | V73: 81.965
A74: 63 | B74: 吴英兰 | C74: 20250505013901 | D74: 小学 | E74: 体育与健康 | F74: 78.5 | G74: 61 | H74: 是 | I74: 3 | J74: 15 | K74: 77.4 | L74: 77.4 | N74: =SUMPRODUCT(--(($T$3:$T$793=T74)*($U$3:$U$793>U74))+1)-790 -> 195 | O74: =SUMPRODUCT(--(($R$3:$R$793=R74)*($S$3:$S$793>S74))+1)-790 -> 195 | P74: TRUE | R74: 小学体育与健康 | S74: 77.95 | T74: 小学体育与健康 | U74: 77.95 | V74: 77.95
A75: 243 | B75: 王涌衡 | C75: 20250505016810 | D75: 小学 | E75: 体育与健康 | F75: 72.75 | G75: 238 | H75: 是 | I75: 3 | J75: 16 | K75: 81.04 | L75: 81.04 | N75: =SUMPRODUCT(--(($T$3:$T$793=T75)*($U$3:$U$793>U75))+1)-790 -> 219 | O75: =SUMPRODUCT(--(($R$3:$R$793=R75)*($S$3:$S$793>S75))+1)-790 -> 219 | P75: TRUE | R75: 小学体育与健康 | S75: 76.895 | T75: 小学体育与健康 | U75: 76.895 | V75: 76.895
A76: 159 | B76: 郭羽 | C76: 20250505011430 | D76: 小学 | E76: 体育与健康 | F76: 75 | G76: 159 | H76: 是 | I76: 3 | J76: 17 | K76: 78.14 | L76: 78.14 | N76: =SUMPRODUCT(--(($T$3:$T$793=T76)*($U$3:$U$793>U76))+1)-790 -> 223 | O76: =SUMPRODUCT(--(($R$3:$R$793=R76)*($S$3:$S$793>S76))+1)-790 -> 223 | P76: TRUE | R76: 小学体育与健康 | S76: 76.57 | T76: 小学体育与健康 | U76: 76.57 | V76: 76.57
A77: 186 | B77: 何鑫 | C77: 20250505011923 | D77: 小学 | E77: 体育与健康 | F77: 74 | G77: 185 | H77: 是 | I77: 3 | J77: 18 | K77: 80.14 | L77: 80.14 | N77: =SUMPRODUCT(--(($T$3:$T$793=T77)*($U$3:$U$793>U77))+1)-790 -> 217 | O77: =SUMPRODUCT(--(($R$3:$R$793=R77)*($S$3:$S$793>S77))+1)-790 -> 217 | P77: TRUE | R77: 小学体育与健康 | S77: 77.07 | T77: 小学体育与健康 | U77: 77.07 | V77: 77.07
A78: 220 | B78: 刘文璐 | C78: 20250505012111 | D78: 小学 | E78: 体育与健康 | F78: 73.25 | G78: 219 | H78: 是 | I78: 3 | J78: 19 | K78: 84.96 | L78: 84.96 | N78: =SUMPRODUCT(--(($T$3:$T$793=T78)*($U$3:$U$793>U78))+1)-790 -> 167 | O78: =SUMPRODUCT(--(($R$3:$R$793=R78)*($S$3:$S$793>S78))+1)-790 -> 167 | P78: TRUE | R78: 小学体育与健康 | S78: 79.105 | T78: 小学体育与健康 | U78: 79.105 | V78: 79.105
A79: 4 | B79: 吴涛 | C79: 20250505011414 | D79: 小学 | E79: 体育与健康 | F79: 86.5 | G79: 4 | H79: 是 | I79: 3 | J79: 20 | K79: 79.1 | L79: 79.1 | N79: =SUMPRODUCT(--(($T$3:$T$793=T79)*($U$3:$U$793>U79))+1)-790 -> 43 | O79: =SUMPRODUCT(--(($R$3:$R$793=R79)*($S$3:$S$793>S79))+1)-790 -> 43 | P79: TRUE | R79: 小学体育与健康 | S79: 82.8 | T79: 小学体育与健康 | U79: 82.8 | V79: 82.8
A80: 1 | B80: 牟香 | C80: 20250505015425 | D80: 小学 | E80: 体育与健康 | F80: 87.5 | G80: 1 | H80: 是 | I80: 3 | J80: 21 | K80: 82.14 | L80: 82.14 | N80: =SUMPRODUCT(--(($T$3:$T$793=T80)*($U$3:$U$793>U80))+1)-790 -> 11 | O80: =SUMPRODUCT(--(($R$3:$R$793=R80)*($S$3:$S$793>S80))+1)-790 -> 11 | P80: TRUE | R80: 小学体育与健康 | S80: 84.82 | T80: 小学体育与健康 | U80: 84.82 | V80: 84.82
A81: 195 | B81: 叶红丹 | C81: 20250505017308 | D81: 小学 | E81: 体育与健康 | F81: 74 | G81: 185 | H81: 是 | I81: 3 | J81: 22 | K81: 79.46 | L81: 79.46 | N81: =SUMPRODUCT(--(($T$3:$T$793=T81)*($U$3:$U$793>U81))+1)-790 -> 220 | O81: =SUMPRODUCT(--(($R$3:$R$793=R81)*($S$3:$S$793>S81))+1)-790 -> 220 | P81: TRUE | R81: 小学体育与健康 | S81: 76.73 | T81: 小学体育与健康 | U81: 76.73 | V81: 76.73
A82: 47 | B82: 刘丁 | C82: 20250505016730 | D82: 小学 | E82: 体育与健康 | F82: 79.5 | G82: 41 | H82: 是 | I82: 3 | J82: 23 | K82: 80.68 | L82: 80.68 | N82: =SUMPRODUCT(--(($T$3:$T$793=T82)*($U$3:$U$793>U82))+1)-790 -> 133 | O82: =SUMPRODUCT(--(($R$3:$R$793=R82)*($S$3:$S$793>S82))+1)-790 -> 133 | P82: TRUE | R82: 小学体育与健康 | S82: 80.09 | T82: 小学体育与健康 | U82: 80.09 | V82: 80.09
A83: 126 | B83: 杨莉柳 | C83: 20250505014806 | D83: 小学 | E83: 体育与健康 | F83: 76 | G83: 120 | H83: 是 | I83: 3 | J83: 24 | K83: 83.16 | L83: 83.16 | N83: =SUMPRODUCT(--(($T$3:$T$793=T83)*($U$3:$U$793>U83))+1)-790 -> 148 | O83: =SUMPRODUCT(--(($R$3:$R$793=R83)*($S$3:$S$793>S83))+1)-790 -> 148 | P83: TRUE | R83: 小学体育与健康 | S83: 79.58 | T83: 小学体育与健康 | U83: 79.58 | V83: 79.58
A84: 53 | B84: 伍猛 | C84: 20250505012129 | D84: 小学 | E84: 体育与健康 | F84: 79 | G84: 53 | H84: 是 | I84: 3 | J84: 25 | K84: 77.34 | L84: 77.34 | N84: =SUMPRODUCT(--(($T$3:$T$793=T84)*($U$3:$U$793>U84))+1)-790 -> 190 | O84: =SUMPRODUCT(--(($R$3:$R$793=R84)*($S$3:$S$793>S84))+1)-790 -> 190 | P84: TRUE | R84: 小学体育与健康 | S84: 78.17 | T84: 小学体育与健康 | U84: 78.17 | V84: 78.17
A85: 214 | B85: 陈选芳 | C85: 20250505015717 | D85: 小学 | E85: 体育与健康 | F85: 73.5 | G85: 205 | H85: 是 | I85: 3 | J85: 26 | K85: 80.58 | L85: 80.58 | N85: =SUMPRODUCT(--(($T$3:$T$793=T85)*($U$3:$U$793>U85))+1)-790 -> 218 | O85: =SUMPRODUCT(--(($R$3:$R$793=R85)*($S$3:$S$793>S85))+1)-790 -> 218 | P85: TRUE | R85: 小学体育与健康 | S85: 77.04 | T85: 小学体育与健康 | U85: 77.04 | V85: 77.04
A86: 240 | B86: 戴佳成 | C86: 20250505012819 | D86: 小学 | E86: 体育与健康 | F86: 72.75 | G86: 238 | H86: 是 | I86: 3 | J86: 27 | K86: 73 | L86: 73 | N86: =SUMPRODUCT(--(($T$3:$T$793=T86)*($U$3:$U$793>U86))+1)-790 -> 228 | O86: =SUMPRODUCT(--(($R$3:$R$793=R86)*($S$3:$S$793>S86))+1)-790 -> 228 | P86: TRUE | R86: 小学体育与健康 | S86: 72.875 | T86: 小学体育与健康 | U86: 72.875 | V86: 72.875
A87: 231 | B87: 万凯 | C87: 20250505012705 | D87: 小学 | E87: 体育与健康 | F87: 73 | G87: 230 | H87: 是 | I87: 3 | J87: 28 | K87: 81.36 | L87: 81.36 | N87: =SUMPRODUCT(--(($T$3:$T$793=T87)*($U$3:$U$793>U87))+1)-790 -> 216 | O87: =SUMPRODUCT(--(($R$3:$R$793=R87)*($S$3:$S$793>S87))+1)-790 -> 216 | P87: TRUE | R87: 小学体育与健康 | S87: 77.18 | T87: 小学体育与健康 | U87: 77.18 | V87: 77.18
A88: 66 | B88: 黄绪 | C88: 20250505017319 | D88: 小学 | E88: 体育与健康 | F88: 78.5 | G88: 61 | H88: 是 | I88: 3 | J88: 29 | K88: 79.66 | L88: 79.66 | N88: =SUMPRODUCT(--(($T$3:$T$793=T88)*($U$3:$U$793>U88))+1)-790 -> 168 | O88: =SUMPRODUCT(--(($R$3:$R$793=R88)*($S$3:$S$793>S88))+1)-790 -> 168 | P88: TRUE | R88: 小学体育与健康 | S88: 79.08 | T88: 小学体育与健康 | U88: 79.08 | V88: 79.08
A89: 23 | B89: 李树成 | C89: 20250505013217 | D89: 小学 | E89: 体育与健康 | F89: 81.5 | G89: 23 | H89: 是 | I89: 3 | J89: 30 | K89: 81.82 | L89: 81.82 | N89: =SUMPRODUCT(--(($T$3:$T$793=T89)*($U$3:$U$793>U89))+1)-790 -> 83 | O89: =SUMPRODUCT(--(($R$3:$R$793=R89)*($S$3:$S$793>S89))+1)-790 -> 83 | P89: TRUE | R89: 小学体育与健康 | S89: 81.66 | T89: 小学体育与健康 | U89: 81.66 | V89: 81.66
A90: 184 | B90: 李忠 | C90: 20250505015028 | D90: 小学 | E90: 体育与健康 | F90: 74.25 | G90: 178 | H90: 是 | I90: 3 | J90: 31 | K90: 84.28 | L90: 84.28 | N90: =SUMPRODUCT(--(($T$3:$T$793=T90)*($U$3:$U$793>U90))+1)-790 -> 160 | O90: =SUMPRODUCT(--(($R$3:$R$793=R90)*($S$3:$S$793>S90))+1)-790 -> 160 | P90: TRUE | R90: 小学体育与健康 | S90: 79.265 | T90: 小学体育与健康 | U90: 79.265 | V90: 79.265
A91: 229 | B91: 田洪宇 | C91: 20250505017902 | D91: 小学 | E91: 体育与健康 | F91: 73.25 | G91: 219 | H91: 是 | I91: 4 | J91: 1 | K91: 86.2 | L91: 86.2 | N91: =SUMPRODUCT(--(($T$3:$T$793=T91)*($U$3:$U$793>U91))+1)-790 -> 145 | O91: =SUMPRODUCT(--(($R$3:$R$793=R91)*($S$3:$S$793>S91))+1)-790 -> 145 | P91: TRUE | R91: 小学体育与健康 | S91: 79.725 | T91: 小学体育与健康 | U91: 79.725 | V91: 79.725
A92: 122 | B92: 杨静 | C92: 20250505013628 | D92: 小学 | E92: 体育与健康 | F92: 76 | G92: 120 | H92: 是 | I92: 4 | J92: 2 | K92: 83.1 | L92: 83.1 | N92: =SUMPRODUCT(--(($T$3:$T$793=T92)*($U$3:$U$793>U92))+1)-790 -> 152 | O92: =SUMPRODUCT(--(($R$3:$R$793=R92)*($S$3:$S$793>S92))+1)-790 -> 152 | P92: TRUE | R92: 小学体育与健康 | S92: 79.55 | T92: 小学体育与健康 | U92: 79.55 | V92: 79.55
A93: 191 | B93: 罗宁艳 | C93: 20250505015609 | D93: 小学 | E93: 体育与健康 | F93: 74 | G93: 185 | H93: 是 | I93: 4 | J93: 3 | K93: 69.58 | L93: 69.58 | N93: =SUMPRODUCT(--(($T$3:$T$793=T93)*($U$3:$U$793>U93))+1)-790 -> 229 | O93: =SUMPRODUCT(--(($R$3:$R$793=R93)*($S$3:$S$793>S93))+1)-790 -> 229 | P93: TRUE | R93: 小学体育与健康 | S93: 71.79 | T93: 小学体育与健康 | U93: 71.79 | V93: 71.79
A94: 114 | B94: 邹盼 | C94: 20250505014710 | D94: 小学 | E94: 体育与健康 | F94: 76.25 | G94: 113 | H94: 是 | I94: 4 | J94: 4 | K94: 88.42 | L94: 88.42 | N94: =SUMPRODUCT(--(($T$3:$T$793=T94)*($U$3:$U$793>U94))+1)-790 -> 55 | O94: =SUMPRODUCT(--(($R$3:$R$793=R94)*($S$3:$S$793>S94))+1)-790 -> 55 | P94: TRUE | R94: 小学体育与健康 | S94: 82.335 | T94: 小学体育与健康 | U94: 82.335 | V94: 82.335
A95: 154 | B95: 杨丽娟 | C95: 20250505014417 | D95: 小学 | E95: 体育与健康 | F95: 75.25 | G95: 150 | H95: 是 | I95: 4 | J95: 5 | K95: 88.22 | L95: 88.22 | N95: =SUMPRODUCT(--(($T$3:$T$793=T95)*($U$3:$U$793>U95))+1)-790 -> 78 | O95: =SUMPRODUCT(--(($R$3:$R$793=R95)*($S$3:$S$793>S95))+1)-790 -> 78 | P95: TRUE | R95: 小学体育与健康 | S95: 81.735 | T95: 小学体育与健康 | U95: 81.735 | V95: 81.735
A96: 86 | B96: 穆兵 | C96: 20250505014515 | D96: 小学 | E96: 体育与健康 | F96: 77.5 | G96: 81 | H96: 是 | I96: 4 | J96: 6 | K96: 89.62 | L96: 89.62 | N96: =SUMPRODUCT(--(($T$3:$T$793=T96)*($U$3:$U$793>U96))+1)-790 -> 25 | O96: =SUMPRODUCT(--(($R$3:$R$793=R96)*($S$3:$S$793>S96))+1)-790 -> 25 | P96: TRUE | R96: 小学体育与健康 | S96: 83.56 | T96: 小学体育与健康 | U96: 83.56 | V96: 83.56
A97: 14 | B97: 李孟 | C97: 20250505011827 | D97: 小学 | E97: 体育与健康 | F97: 82.75 | G97: 14 | H97: 是 | I97: 4 | J97: 8 | K97: 88.18 | L97: 88.18 | N97: =SUMPRODUCT(--(($T$3:$T$793=T97)*($U$3:$U$793>U97))+1)-790 -> 4 | O97: =SUMPRODUCT(--(($R$3:$R$793=R97)*($S$3:$S$793>S97))+1)-790 -> 4 | P97: TRUE | R97: 小学体育与健康 | S97: 85.465 | T97: 小学体育与健康 | U97: 85.465 | V97: 85.465
A98: 106 | B98: 赵寻 | C98: 20250505011512 | D98: 小学 | E98: 体育与健康 | F98: 76.5 | G98: 105 | H98: 是 | I98: 4 | J98: 9 | K98: 86.96 | L98: 86.96 | N98: =SUMPRODUCT(--(($T$3:$T$793=T98)*($U$3:$U$793>U98))+1)-790 -> 79 | O98: =SUMPRODUCT(--(($R$3:$R$793=R98)*($S$3:$S$793>S98))+1)-790 -> 79 | P98: TRUE | R98: 小学体育与健康 | S98: 81.73 | T98: 小学体育与健康 | U98: 81.73 | V98: 81.73
A99: 43 | B99: 张亚亚 | C99: 20250505014429 | D99: 小学 | E99: 体育与健康 | F99: 79.5 | G99: 41 | H99: 是 | I99: 4 | J99: 10 | K99: 87.4 | L99: 87.4 | N99: =SUMPRODUCT(--(($T$3:$T$793=T99)*($U$3:$U$793>U99))+1)-790 -> 27 | O99: =SUMPRODUCT(--(($R$3:$R$793=R99)*($S$3:$S$793>S99))+1)-790 -> 27 | P99: TRUE | R99: 小学体育与健康 | S99: 83.45 | T99: 小学体育与健康 | U99: 83.45 | V99: 83.45
A100: 13 | B100: 文明龙 | C100: 20250505018109 | D100: 小学 | E100: 体育与健康 | F100: 83 | G100: 11 | H100: 是 | I100: 4 | J100: 11 | K100: 84.88 | L100: 84.88 | N100: =SUMPRODUCT(--(($T$3:$T$793=T100)*($U$3:$U$793>U100))+1)-790 -> 18 | O100: =SUMPRODUCT(--(($R$3:$R$793=R100)*($S$3:$S$793>S100))+1)-790 -> 18 | P100: TRUE | R100: 小学体育与健康 | S100: 83.94 | T100: 小学体育与健康 | U100: 83.94 | V100: 83.94
A101: 36 | B101: 张浪浪 | C101: 20250505011411 | D101: 小学 | E101: 体育与健康 | F101: 80 | G101: 36 | H101: 是 | I101: 4 | J101: 12 | K101: 89.56 | L101: 89.56 | N101: =SUMPRODUCT(--(($T$3:$T$793=T101)*($U$3:$U$793>U101))+1)-790 -> 12 | O101: =SUMPRODUCT(--(($R$3:$R$793=R101)*($S$3:$S$793>S101))+1)-790 -> 12 | P101: TRUE | R101: 小学体育与健康 | S101: 84.78 | T101: 小学体育与健康 | U101: 84.78 | V101: 84.78
A102: 59 | B102: 马晨曦 | C102: 20250505016007 | D102: 小学 | E102: 体育与健康 | F102: 79 | G102: 53 | H102: 是 | I102: 4 | J102: 13 | K102: 86.26 | L102: 86.26 | N102: =SUMPRODUCT(--(($T$3:$T$793=T102)*($U$3:$U$793>U102))+1)-790 -> 47 | O102: =SUMPRODUCT(--(($R$3:$R$793=R102)*($S$3:$S$793>S102))+1)-790 -> 47 | P102: TRUE | R102: 小学体育与健康 | S102: 82.63 | T102: 小学体育与健康 | U102: 82.63 | V102: 82.63
A103: 222 | B103: 胡思华 | C103: 20250505013824 | D103: 小学 | E103: 体育与健康 | F103: 73.25 | G103: 219 | H103: 是 | I103: 4 | J103: 15 | K103: 86.12 | L103: 86.12 | N103: =SUMPRODUCT(--(($T$3:$T$793=T103)*($U$3:$U$793>U103))+1)-790 -> 146 | O103: =SUMPRODUCT(--(($R$3:$R$793=R103)*($S$3:$S$793>S103))+1)-790 -> 146 | P103: TRUE | R103: 小学体育与健康 | S103: 79.685 | T103: 小学体育与健康 | U103: 79.685 | V103: 79.685
A104: 216 | B104: 蒲旭萨 | C104: 20250505016719 | D104: 小学 | E104: 体育与健康 | F104: 73.5 | G104: 205 | H104: 是 | I104: 4 | J104: 16 | K104: 74.2 | L104: 74.2 | N104: =SUMPRODUCT(--(($T$3:$T$793=T104)*($U$3:$U$793>U104))+1)-790 -> 226 | O104: =SUMPRODUCT(--(($R$3:$R$793=R104)*($S$3:$S$793>S104))+1)-790 -> 226 | P104: TRUE | R104: 小学体育与健康 | S104: 73.85 | T104: 小学体育与健康 | U104: 73.85 | V104: 73.85
A105: 21 | B105: 周其雪 | C105: 20250505015416 | D105: 小学 | E105: 体育与健康 | F105: 82 | G105: 20 | H105: 是 | I105: 4 | J105: 17 | K105: 91.86 | L105: 91.86 | N105: =SUMPRODUCT(--(($T$3:$T$793=T105)*($U$3:$U$793>U105))+1)-790 -> 1 | O105: =SUMPRODUCT(--(($R$3:$R$793=R105)*($S$3:$S$793>S105))+1)-790 -> 1 | P105: TRUE | R105: 小学体育与健康 | S105: 86.93 | T105: 小学体育与健康 | U105: 86.93 | V105: 86.93
A106: 105 | B106: 杨涛 | C106: 20250505011426 | D106: 小学 | E106: 体育与健康 | F106: 76.5 | G106: 105 | H106: 是 | I106: 4 | J106: 18 | K106: 82.04 | L106: 82.04 | N106: =SUMPRODUCT(--(($T$3:$T$793=T106)*($U$3:$U$793>U106))+1)-790 -> 159 | O106: =SUMPRODUCT(--(($R$3:$R$793=R106)*($S$3:$S$793>S106))+1)-790 -> 159 | P106: TRUE | R106: 小学体育与健康 | S106: 79.27 | T106: 小学体育与健康 | U106: 79.27 | V106: 79.27
A107: 80 | B107: 朱江 | C107: 20250505015702 | D107: 小学 | E107: 体育与健康 | F107: 77.75 | G107: 80 | H107: 是 | I107: 4 | J107: 19 | K107: 80.72 | L107: 80.72 | N107: =SUMPRODUCT(--(($T$3:$T$793=T107)*($U$3:$U$793>U107))+1)-790 -> 161 | O107: =SUMPRODUCT(--(($R$3:$R$793=R107)*($S$3:$S$793>S107))+1)-790 -> 161 | P107: TRUE | R107: 小学体育与健康 | S107: 79.235 | T107: 小学体育与健康 | U107: 79.235 | V107: 79.235
A108: 145 | B108: 张粉艳 | C108: 20250505016827 | D108: 小学 | E108: 体育与健康 | F108: 75.5 | G108: 138 | H108: 是 | I108: 4 | J108: 20 | K108: 87.26 | L108: 87.26 | N108: =SUMPRODUCT(--(($T$3:$T$793=T108)*($U$3:$U$793>U108))+1)-790 -> 90 | O108: =SUMPRODUCT(--(($R$3:$R$793=R108)*($S$3:$S$793>S108))+1)-790 -> 90 | P108: TRUE | R108: 小学体育与健康 | S108: 81.38 | T108: 小学体育与健康 | U108: 81.38 | V108: 81.38
A109: 129 | B109: 陆承焰 | C109: 20250505016727 | D109: 小学 | E109: 体育与健康 | F109: 76 | G109: 120 | H109: 是 | I109: 4 | J109: 21 | K109: 86.46 | L109: 86.46 | N109: =SUMPRODUCT(--(($T$3:$T$793=T109)*($U$3:$U$793>U109))+1)-790 -> 93 | O109: =SUMPRODUCT(--(($R$3:$R$793=R109)*($S$3:$S$793>S109))+1)-790 -> 93 | P109: TRUE | R109: 小学体育与健康 | S109: 81.23 | T109: 小学体育与健康 | U109: 81.23 | V109: 81.23
A110: 196 | B110: 吴仕平 | C110: 20250505017523 | D110: 小学 | E110: 体育与健康 | F110: 74 | G110: 185 | H110: 是 | I110: 4 | J110: 22 | K110: 89.46 | L110: 89.46 | N110: =SUMPRODUCT(--(($T$3:$T$793=T110)*($U$3:$U$793>U110))+1)-790 -> 79 | O110: =SUMPRODUCT(--(($R$3:$R$793=R110)*($S$3:$S$793>S110))+1)-790 -> 79 | P110: TRUE | R110: 小学体育与健康 | S110: 81.73 | T110: 小学体育与健康 | U110: 81.73 | V110: 81.73
A111: 134 | B111: 罗先玉 | C111: 20250505013013 | D111: 小学 | E111: 体育与健康 | F111: 75.75 | G111: 133 | H111: 是 | I111: 4 | J111: 23 | K111: 90.02 | L111: 90.02 | N111: =SUMPRODUCT(--(($T$3:$T$793=T111)*($U$3:$U$793>U111))+1)-790 -> 42 | O111: =SUMPRODUCT(--(($R$3:$R$793=R111)*($S$3:$S$793>S111))+1)-790 -> 42 | P111: TRUE | R111: 小学体育与健康 | S111: 82.885 | T111: 小学体育与健康 | U111: 82.885 | V111: 82.885
A112: 84 | B112: 侯玲玲 | C112: 20250505012909 | D112: 小学 | E112: 体育与健康 | F112: 77.5 | G112: 81 | H112: 是 | I112: 4 | J112: 24 | K112: 90.16 | L112: 90.16 | N112: =SUMPRODUCT(--(($T$3:$T$793=T112)*($U$3:$U$793>U112))+1)-790 -> 19 | O112: =SUMPRODUCT(--(($R$3:$R$793=R112)*($S$3:$S$793>S112))+1)-790 -> 19 | P112: TRUE | R112: 小学体育与健康 | S112: 83.83 | T112: 小学体育与健康 | U112: 83.83 | V112: 83.83
A113: 119 | B113: 吴国安 | C113: 20250505017912 | D113: 小学 | E113: 体育与健康 | F113: 76.25 | G113: 113 | H113: 是 | I113: 4 | J113: 25 | K113: 87.16 | L113: 87.16 | N113: =SUMPRODUCT(--(($T$3:$T$793=T113)*($U$3:$U$793>U113))+1)-790 -> 82 | O113: =SUMPRODUCT(--(($R$3:$R$793=R113)*($S$3:$S$793>S113))+1)-790 -> 82 | P113: TRUE | R113: 小学体育与健康 | S113: 81.705 | T113: 小学体育与健康 | U113: 81.705 | V113: 81.705
A114: 128 | B114: 骆钱维 | C114: 20250505015809 | D114: 小学 | E114: 体育与健康 | F114: 76 | G114: 120 | H114: 是 | I114: 4 | J114: 26 | K114: 78.5 | L114: 78.5 | N114: =SUMPRODUCT(--(($T$3:$T$793=T114)*($U$3:$U$793>U114))+1)-790 -> 211 | O114: =SUMPRODUCT(--(($R$3:$R$793=R114)*($S$3:$S$793>S114))+1)-790 -> 211 | P114: TRUE | R114: 小学体育与健康 | S114: 77.25 | T114: 小学体育与健康 | U114: 77.25 | V114: 77.25
A115: 188 | B115: 雷音诗 | C115: 20250505014827 | D115: 小学 | E115: 体育与健康 | F115: 74 | G115: 185 | H115: 是 | I115: 4 | J115: 27 | K115: 86.94 | L115: 86.94 | N115: =SUMPRODUCT(--(($T$3:$T$793=T115)*($U$3:$U$793>U115))+1)-790 -> 123 | O115: =SUMPRODUCT(--(($R$3:$R$793=R115)*($S$3:$S$793>S115))+1)-790 -> 123 | P115: TRUE | R115: 小学体育与健康 | S115: 80.47 | T115: 小学体育与健康 | U115: 80.47 | V115: 80.47
A116: 99 | B116: 王青 | C116: 20250505011506 | D116: 小学 | E116: 体育与健康 | F116: 76.75 | G116: 99 | H116: 是 | I116: 4 | J116: 28 | K116: 86.46 | L116: 86.46 | N116: =SUMPRODUCT(--(($T$3:$T$793=T116)*($U$3:$U$793>U116))+1)-790 -> 86 | O116: =SUMPRODUCT(--(($R$3:$R$793=R116)*($S$3:$S$793>S116))+1)-790 -> 86 | P116: TRUE | R116: 小学体育与健康 | S116: 81.605 | T116: 小学体育与健康 | U116: 81.605 | V116: 81.605
A117: 102 | B117: 骆科未 | C117: 20250505016229 | D117: 小学 | E117: 体育与健康 | F117: 76.75 | G117: 99 | H117: 是 | I117: 4 | J117: 29 | K117: 87.3 | L117: 87.3 | N117: =SUMPRODUCT(--(($T$3:$T$793=T117)*($U$3:$U$793>U117))+1)-790 -> 70 | O117: =SUMPRODUCT(--(($R$3:$R$793=R117)*($S$3:$S$793>S117))+1)-790 -> 70 | P117: TRUE | R117: 小学体育与健康 | S117: 82.025 | T117: 小学体育与健康 | U117: 82.025 | V117: 82.025
A118: 51 | B118: 伍玉琴 | C118: 20250505014017 | D118: 小学 | E118: 体育与健康 | F118: 79.25 | G118: 50 | H118: 是 | I118: 4 | J118: 30 | K118: 90.9 | L118: 90.9 | N118: =SUMPRODUCT(--(($T$3:$T$793=T118)*($U$3:$U$793>U118))+1)-790 -> 8 | O118: =SUMPRODUCT(--(($R$3:$R$793=R118)*($S$3:$S$793>S118))+1)-790 -> 8 | P118: TRUE | R118: 小学体育与健康 | S118: 85.075 | T118: 小学体育与健康 | U118: 85.075 | V118: 85.075
A119: 26 | B119: 潘江花 | C119: 20250505015012 | D119: 小学 | E119: 体育与健康 | F119: 81 | G119: 25 | H119: 是 | I119: 4 | J119: 31 | K119: 82.48 | L119: 82.48 | N119: =SUMPRODUCT(--(($T$3:$T$793=T119)*($U$3:$U$793>U119))+1)-790 -> 77 | O119: =SUMPRODUCT(--(($R$3:$R$793=R119)*($S$3:$S$793>S119))+1)-790 -> 77 | P119: TRUE | R119: 小学体育与健康 | S119: 81.74 | T119: 小学体育与健康 | U119: 81.74 | V119: 81.74
A120: 115 | B120: 常胜胜 | C120: 20250505014815 | D120: 小学 | E120: 体育与健康 | F120: 76.25 | G120: 113 | H120: 是 | I120: 5 | J120: 1 | K120: 85.2 | L120: 85.2 | N120: =SUMPRODUCT(--(($T$3:$T$793=T120)*($U$3:$U$793>U120))+1)-790 -> 110 | O120: =SUMPRODUCT(--(($R$3:$R$793=R120)*($S$3:$S$793>S120))+1)-790 -> 110 | P120: TRUE | R120: 小学体育与健康 | S120: 80.725 | T120: 小学体育与健康 | U120: 80.725 | V120: 80.725
A121: 206 | B121: 王芳 | C121: 20250505011713 | D121: 小学 | E121: 体育与健康 | F121: 73.5 | G121: 205 | H121: 是 | I121: 5 | J121: 2 | K121: 83.06 | L121: 83.06 | N121: =SUMPRODUCT(--(($T$3:$T$793=T121)*($U$3:$U$793>U121))+1)-790 -> 187 | O121: =SUMPRODUCT(--(($R$3:$R$793=R121)*($S$3:$S$793>S121))+1)-790 -> 187 | P121: TRUE | R121: 小学体育与健康 | S121: 78.28 | T121: 小学体育与健康 | U121: 78.28 | V121: 78.28
A122: 192 | B122: 蒋胜明 | C122: 20250505015924 | D122: 小学 | E122: 体育与健康 | F122: 74 | G122: 185 | H122: 是 | I122: 5 | J122: 3 | K122: 81.48 | L122: 81.48 | N122: =SUMPRODUCT(--(($T$3:$T$793=T122)*($U$3:$U$793>U122))+1)-790 -> 199 | O122: =SUMPRODUCT(--(($R$3:$R$793=R122)*($S$3:$S$793>S122))+1)-790 -> 199 | P122: TRUE | R122: 小学体育与健康 | S122: 77.74 | T122: 小学体育与健康 | U122: 77.74 | V122: 77.74
A123: 113 | B123: 郭丽娟 | C123: 20250505011822 | D123: 小学 | E123: 体育与健康 | F123: 76.25 | G123: 113 | H123: 是 | I123: 5 | J123: 4 | K123: 83.94 | L123: 83.94 | N123: =SUMPRODUCT(--(($T$3:$T$793=T123)*($U$3:$U$793>U123))+1)-790 -> 132 | O123: =SUMPRODUCT(--(($R$3:$R$793=R123)*($S$3:$S$793>S123))+1)-790 -> 132 | P123: TRUE | R123: 小学体育与健康 | S123: 80.095 | T123: 小学体育与健康 | U123: 80.095 | V123: 80.095
A124: 239 | B124: 蒋德林 | C124: 20250505011807 | D124: 小学 | E124: 体育与健康 | F124: 72.75 | G124: 238 | H124: 是 | I124: 5 | J124: 5 | K124: 74.22 | L124: 74.22 | N124: =SUMPRODUCT(--(($T$3:$T$793=T124)*($U$3:$U$793>U124))+1)-790 -> 227 | O124: =SUMPRODUCT(--(($R$3:$R$793=R124)*($S$3:$S$793>S124))+1)-790 -> 227 | P124: TRUE | R124: 小学体育与健康 | S124: 73.485 | T124: 小学体育与健康 | U124: 73.485 | V124: 73.485
A125: 65 | B125: 鲁云 | C125: 20250505017307 | D125: 小学 | E125: 体育与健康 | F125: 78.5 | G125: 61 | H125: 是 | I125: 5 | J125: 6 | K125: 83.10 | L125: 83.10 | N125: =SUMPRODUCT(--(($T$3:$T$793=T125)*($U$3:$U$793>U125))+1)-790 -> 107 | O125: =SUMPRODUCT(--(($R$3:$R$793=R125)*($S$3:$S$793>S125))+1)-790 -> 107 | P125: TRUE | R125: 小学体育与健康 | S125: 80.8 | T125: 小学体育与健康 | U125: 80.8 | V125: 80.8
A126: 205 | B126: 史登梅 | C126: 20250505011517 | D126: 小学 | E126: 体育与健康 | F126: 73.5 | G126: 205 | H126: 是 | I126: 5 | J126: 7 | K126: 81.00 | L126: 81.00 | N126: =SUMPRODUCT(--(($T$3:$T$793=T126)*($U$3:$U$793>U126))+1)-790 -> 211 | O126: =SUMPRODUCT(--(($R$3:$R$793=R126)*($S$3:$S$793>S126))+1)-790 -> 211 | P126: TRUE | R126: 小学体育与健康 | S126: 77.25 | T126: 小学体育与健康 | U126: 77.25 | V126: 77.25
A127: 3 | B127: 周小汪 | C127: 20250505014918 | D127: 小学 | E127: 体育与健康 | F127: 86.75 | G127: 3 | H127: 是 | I127: 5 | J127: 8 | K127: 84.10 | L127: 84.10 | N127: =SUMPRODUCT(--(($T$3:$T$793=T127)*($U$3:$U$793>U127))+1)-790 -> 5 | O127: =SUMPRODUCT(--(($R$3:$R$793=R127)*($S$3:$S$793>S127))+1)-790 -> 5 | P127: TRUE | R127: 小学体育与健康 | S127: 85.425 | T127: 小学体育与健康 | U127: 85.425 | V127: 85.425
A128: 73 | B128: 周利明 | C128: 20250505012929 | D128: 小学 | E128: 体育与健康 | F128: 78 | G128: 72 | H128: 是 | I128: 5 | J128: 9 | K128: 87.58 | L128: 87.58 | N128: =SUMPRODUCT(--(($T$3:$T$793=T128)*($U$3:$U$793>U128))+1)-790 -> 44 | O128: =SUMPRODUCT(--(($R$3:$R$793=R128)*($S$3:$S$793>S128))+1)-790 -> 44 | P128: TRUE | R128: 小学体育与健康 | S128: 82.79 | T128: 小学体育与健康 | U128: 82.79 | V128: 82.79
A129: 151 | B129: 邓礼鹏 | C129: 20250505012311 | D129: 小学 | E129: 体育与健康 | F129: 75.25 | G129: 150 | H129: 是 | I129: 5 | J129: 10 | K129: 79.24 | L129: 79.24 | N129: =SUMPRODUCT(--(($T$3:$T$793=T129)*($U$3:$U$793>U129))+1)-790 -> 214 | O129: =SUMPRODUCT(--(($R$3:$R$793=R129)*($S$3:$S$793>S129))+1)-790 -> 214 | P129: TRUE | R129: 小学体育与健康 | S129: 77.245 | T129: 小学体育与健康 | U129: 77.245 | V129: 77.245
A130: 194 | B130: 王磊 | C130: 20250505017124 | D130: 小学 | E130: 体育与健康 | F130: 74 | G130: 185 | H130: 是 | I130: 5 | J130: 11 | K130: 66.88 | L130: 66.88 | N130: =SUMPRODUCT(--(($T$3:$T$793=T130)*($U$3:$U$793>U130))+1)-790 -> 231 | O130: =SUMPRODUCT(--(($R$3:$R$793=R130)*($S$3:$S$793>S130))+1)-790 -> 231 | P130: TRUE | R130: 小学体育与健康 | S130: 70.44 | T130: 小学体育与健康 | U130: 70.44 | V130: 70.44
A131: 104 | B131: 何泽 | C131: 20250505017101 | D131: 小学 | E131: 体育与健康 | F131: 76.75 | G131: 99 | H131: 是 | I131: 5 | J131: 12 | K131: 82.78 | L131: 82.78 | N131: =SUMPRODUCT(--(($T$3:$T$793=T131)*($U$3:$U$793>U131))+1)-790 -> 143 | O131: =SUMPRODUCT(--(($R$3:$R$793=R131)*($S$3:$S$793>S131))+1)-790 -> 143 | P131: =N131=O131 -> TRUE | R131: =D131&E131 -> 小学体育与健康 | S131: =F131*0.5+L131*0.5 -> 79.765 | T131: =D131&E131 -> 小学体育与健康 | U131: =F131*0.5+K131*0.5 -> 79.765 | V131: =F131*0.5+L131*0.5 -> 79.765
A132: 237 | B132: 徐小峰 | C132: 20250505017703 | D132: 小学 | E132: 体育与健康 | F132: 73 | G132: 230 | H132: 是 | I132: 5 | J132: 13 | K132: 81.74 | L132: 81.74 | N132: =SUMPRODUCT(--(($T$3:$T$793=T132)*($U$3:$U$793>U132))+1)-790 -> 208 | O132: =SUMPRODUCT(--(($R$3:$R$793=R132)*($S$3:$S$793>S132))+1)-790 -> 208 | P132: TRUE | R132: 小学体育与健康 | S132: 77.37 | T132: 小学体育与健康 | U132: 77.37 | V132: 77.37
A133: 45 | B133: 杨梅 | C133: 20250505016112 | D133: 小学 | E133: 体育与健康 | F133: 79.5 | G133: 41 | H133: 是 | I133: 5 | J133: 14 | K133: 77.08 | L133: 77.08 | N133: =SUMPRODUCT(--(($T$3:$T$793=T133)*($U$3:$U$793>U133))+1)-790 -> 186 | O133: =SUMPRODUCT(--(($R$3:$R$793=R133)*($S$3:$S$793>S133))+1)-790 -> 186 | P133: TRUE | R133: 小学体育与健康 | S133: 78.29 | T133: 小学体育与健康 | U133: 78.29 | V133: 78.29
A134: 46 | B134: 韦燕 | C134: 20250505016303 | D134: 小学 | E134: 体育与健康 | F134: 79.5 | G134: 41 | H134: 是 | I134: 5 | J134: 15 | K134: 88.12 | L134: 88.12 | N134: =SUMPRODUCT(--(($T$3:$T$793=T134)*($U$3:$U$793>U134))+1)-790 -> 20 | O134: =SUMPRODUCT(--(($R$3:$R$793=R134)*($S$3:$S$793>S134))+1)-790 -> 20 | P134: TRUE | R134: 小学体育与健康 | S134: 83.81 | T134: 小学体育与健康 | U134: 83.81 | V134: 83.81
A135: 176 | B135: 王西春 | C135: 20250505016718 | D135: 小学 | E135: 体育与健康 | F135: 74.5 | G135: 172 | H135: 是 | I135: 5 | J135: 16 | K135: 86.56 | L135: 86.56 | N135: =SUMPRODUCT(--(($T$3:$T$793=T135)*($U$3:$U$793>U135))+1)-790 -> 117 | O135: =SUMPRODUCT(--(($R$3:$R$793=R135)*($S$3:$S$793>S135))+1)-790 -> 117 | P135: TRUE | R135: 小学体育与健康 | S135: 80.53 | T135: 小学体育与健康 | U135: 80.53 | V135: 80.53
A136: 180 | B136: 朱龙祥 | C136: 20250505012309 | D136: 小学 | E136: 体育与健康 | F136: 74.25 | G136: 178 | H136: 是 | I136: 5 | J136: 18 | K136: 82.58 | L136: 82.58 | N136: =SUMPRODUCT(--(($T$3:$T$793=T136)*($U$3:$U$793>U136))+1)-790 -> 182 | O136: =SUMPRODUCT(--(($R$3:$R$793=R136)*($S$3:$S$793>S136))+1)-790 -> 182 | P136: TRUE | R136: 小学体育与健康 | S136: 78.415 | T136: 小学体育与健康 | U136: 78.415 | V136: 78.415
A137: 72 | B137: 敖晓静 | C137: 20250505011612 | D137: 小学 | E137: 体育与健康 | F137: 78 | G137: 72 | H137: 是 | I137: 5 | J137: 19 | K137: 86.70 | L137: 86.70 | N137: =SUMPRODUCT(--(($T$3:$T$793=T137)*($U$3:$U$793>U137))+1)-790 -> 52 | O137: =SUMPRODUCT(--(($R$3:$R$793=R137)*($S$3:$S$793>S137))+1)-790 -> 52 | P137: TRUE | R137: 小学体育与健康 | S137: 82.35 | T137: 小学体育与健康 | U137: 82.35 | V137: 82.35
A138: 89 | B138: 周泽平 | C138: 20250505012818 | D138: 小学 | E138: 体育与健康 | F138: 77.25 | G138: 89 | H138: 是 | I138: 5 | J138: 20 | K138: 82.28 | L138: 82.28 | N138: =SUMPRODUCT(--(($T$3:$T$793=T138)*($U$3:$U$793>U138))+1)-790 -> 143 | O138: =SUMPRODUCT(--(($R$3:$R$793=R138)*($S$3:$S$793>S138))+1)-790 -> 143 | P138: TRUE | R138: 小学体育与健康 | S138: 79.765 | T138: 小学体育与健康 | U138: 79.765 | V138: 79.765
A139: 81 | B139: 马窕 | C139: 20250505011530 | D139: 小学 | E139: 体育与健康 | F139: 77.5 | G139: 81 | H139: 是 | I139: 5 | J139: 21 | K139: 87.40 | L139: 87.40 | N139: =SUMPRODUCT(--(($T$3:$T$793=T139)*($U$3:$U$793>U139))+1)-790 -> 50 | O139: =SUMPRODUCT(--(($R$3:$R$793=R139)*($S$3:$S$793>S139))+1)-790 -> 50 | P139: TRUE | R139: 小学体育与健康 | S139: 82.45 | T139: 小学体育与健康 | U139: 82.45 | V139: 82.45
A140: 24 | B140: 喻孝燚 | C140: 20250505016922 | D140: 小学 | E140: 体育与健康 | F140: 81.5 | G140: 23 | H140: 是 | I140: 5 | J140: 22 | K140: 82.18 | L140: 82.18 | N140: =SUMPRODUCT(--(($T$3:$T$793=T140)*($U$3:$U$793>U140))+1)-790 -> 76 | O140: =SUMPRODUCT(--(($R$3:$R$793=R140)*($S$3:$S$793>S140))+1)-790 -> 76 | P140: TRUE | R140: 小学体育与健康 | S140: 81.84 | T140: 小学体育与健康 | U140: 81.84 | V140: 81.84
A141: 110 | B141: 李贤爱 | C141: 20250505015224 | D141: 小学 | E141: 体育与健康 | F141: 76.5 | G141: 105 | H141: 是 | I141: 5 | J141: 23 | K141: 79.50 | L141: 79.50 | N141: =SUMPRODUCT(--(($T$3:$T$793=T141)*($U$3:$U$793>U141))+1)-790 -> 194 | O141: =SUMPRODUCT(--(($R$3:$R$793=R141)*($S$3:$S$793>S141))+1)-790 -> 194 | P141: TRUE | R141: 小学体育与健康 | S141: 78 | T141: 小学体育与健康 | U141: 78 | V141: 78
A142: 91 | B142: 肖马薇 | C142: 20250505011421 | D142: 小学 | E142: 体育与健康 | F142: 77 | G142: 91 | H142: 是 | I142: 5 | J142: 24 | K142: 81.36 | L142: 81.36 | N142: =SUMPRODUCT(--(($T$3:$T$793=T142)*($U$3:$U$793>U142))+1)-790 -> 163 | O142: =SUMPRODUCT(--(($R$3:$R$793=R142)*($S$3:$S$793>S142))+1)-790 -> 163 | P142: TRUE | R142: 小学体育与健康 | S142: 79.18 | T142: 小学体育与健康 | U142: 79.18 | V142: 79.18
A143: 93 | B143: 罗和林 | C143: 20250505012606 | D143: 小学 | E143: 体育与健康 | F143: 77 | G143: 91 | H143: 是 | I143: 5 | J143: 25 | K143: 77.48 | L143: 77.48 | N143: =SUMPRODUCT(--(($T$3:$T$793=T143)*($U$3:$U$793>U143))+1)-790 -> 215 | O143: =SUMPRODUCT(--(($R$3:$R$793=R143)*($S$3:$S$793>S143))+1)-790 -> 215 | P143: TRUE | R143: 小学体育与健康 | S143: 77.24 | T143: 小学体育与健康 | U143: 77.24 | V143: 77.24
A144: 218 | B144: 王慧楠 | C144: 20250505017317 | D144: 小学 | E144: 体育与健康 | F144: 73.5 | G144: 205 | H144: 是 | I144: 5 | J144: 26 | K144: 81.44 | L144: 81.44 | N144: =SUMPRODUCT(--(($T$3:$T$793=T144)*($U$3:$U$793>U144))+1)-790 -> 205 | O144: =SUMPRODUCT(--(($R$3:$R$793=R144)*($S$3:$S$793>S144))+1)-790 -> 205 | P144: TRUE | R144: 小学体育与健康 | S144: 77.47 | T144: 小学体育与健康 | U144: 77.47 | V144: 77.47
A145: 108 | B145: 迟宽巧 | C145: 20250505011825 | D145: 小学 | E145: 体育与健康 | F145: 76.5 | G145: 105 | H145: 是 | I145: 5 | J145: 28 | K145: 65.04 | L145: 65.04 | N145: =SUMPRODUCT(--(($T$3:$T$793=T145)*($U$3:$U$793>U145))+1)-790 -> 230 | O145: =SUMPRODUCT(--(($R$3:$R$793=R145)*($S$3:$S$793>S145))+1)-790 -> 230 | P145: TRUE | R145: 小学体育与健康 | S145: 70.77 | T145: 小学体育与健康 | U145: 70.77 | V145: 70.77
A146: 147 | B146: 张举贵 | C146: 20250505017519 | D146: 小学 | E146: 体育与健康 | F146: 75.5 | G146: 138 | H146: 是 | I146: 5 | J146: 30 | K146: 82.00 | L146: 82.00 | N146: =SUMPRODUCT(--(($T$3:$T$793=T146)*($U$3:$U$793>U146))+1)-790 -> 173 | O146: =SUMPRODUCT(--(($R$3:$R$793=R146)*($S$3:$S$793>S146))+1)-790 -> 173 | P146: TRUE | R146: 小学体育与健康 | S146: 78.75 | T146: 小学体育与健康 | U146: 78.75 | V146: 78.75
A147: 107 | B147: 李增彬 | C147: 20250505011817 | D147: 小学 | E147: 体育与健康 | F147: 76.5 | G147: 105 | H147: 是 | I147: 5 | J147: 31 | K147: 80.24 | L147: 80.24 | N147: =SUMPRODUCT(--(($T$3:$T$793=T147)*($U$3:$U$793>U147))+1)-790 -> 184 | O147: =SUMPRODUCT(--(($R$3:$R$793=R147)*($S$3:$S$793>S147))+1)-790 -> 184 | P147: TRUE | R147: 小学体育与健康 | S147: 78.37 | T147: 小学体育与健康 | U147: 78.37 | V147: 78.37
A148: 124 | B148: 幸雪 | C148: 20250505014030 | D148: 小学 | E148: 体育与健康 | F148: 76 | G148: 120 | H148: 是 | I148: 6 | J148: 1 | K148: 85.14 | L148: 85.14 | N148: =SUMPRODUCT(--(($T$3:$T$793=T148)*($U$3:$U$793>U148))+1)-790 -> 114 | O148: =SUMPRODUCT(--(($R$3:$R$793=R148)*($S$3:$S$793>S148))+1)-790 -> 114 | P148: TRUE | R148: 小学体育与健康 | S148: 80.57 | T148: 小学体育与健康 | U148: 80.57 | V148: 80.57
A149: 193 | B149: 侯志豪 | C149: 20250505017024 | D149: 小学 | E149: 体育与健康 | F149: 74 | G149: 185 | H149: 是 | I149: 6 | J149: 2 | K149: 86.18 | L149: 86.18 | N149: =SUMPRODUCT(--(($T$3:$T$793=T149)*($U$3:$U$793>U149))+1)-790 -> 133 | O149: =SUMPRODUCT(--(($R$3:$R$793=R149)*($S$3:$S$793>S149))+1)-790 -> 133 | P149: TRUE | R149: 小学体育与健康 | S149: 80.09 | T149: 小学体育与健康 | U149: 80.09 | V149: 80.09
A150: 83 | B150: 马礼简 | C150: 20250505011908 | D150: 小学 | E150: 体育与健康 | F150: 77.5 | G150: 81 | H150: 是 | I150: 6 | J150: 3 | K150: 86.4 | L150: 86.4 | N150: =SUMPRODUCT(--(($T$3:$T$793=T150)*($U$3:$U$793>U150))+1)-790 -> 74 | O150: =SUMPRODUCT(--(($R$3:$R$793=R150)*($S$3:$S$793>S150))+1)-790 -> 74 | P150: TRUE | R150: 小学体育与健康 | S150: 81.95 | T150: 小学体育与健康 | U150: 81.95 | V150: 81.95
A151: 155 | B151: 彭鑫 | C151: 20250505014521 | D151: 小学 | E151: 体育与健康 | F151: 75.25 | G151: 150 | H151: 是 | I151: 6 | J151: 4 | K151: 83.1 | L151: 83.1 | N151: =SUMPRODUCT(--(($T$3:$T$793=T151)*($U$3:$U$793>U151))+1)-790 -> 164 | O151: =SUMPRODUCT(--(($R$3:$R$793=R151)*($S$3:$S$793>S151))+1)-790 -> 164 | P151: TRUE | R151: 小学体育与健康 | S151: 79.175 | T151: 小学体育与健康 | U151: 79.175 | V151: 79.175
A152: 71 | B152: 吴绪 | C152: 20250505017111 | D152: 小学 | E152: 体育与健康 | F152: 78.25 | G152: 68 | H152: 是 | I152: 6 | J152: 5 | K152: 86.96 | L152: 86.96 | N152: =SUMPRODUCT(--(($T$3:$T$793=T152)*($U$3:$U$793>U152))+1)-790 -> 48 | O152: =SUMPRODUCT(--(($R$3:$R$793=R152)*($S$3:$S$793>S152))+1)-790 -> 48 | P152: TRUE | R152: 小学体育与健康 | S152: 82.605 | T152: 小学体育与健康 | U152: 82.605 | V152: 82.605
A153: 111 | B153: 吴云滔 | C153: 20250505017320 | D153: 小学 | E153: 体育与健康 | F153: 76.5 | G153: 105 | H153: 是 | I153: 6 | J153: 6 | K153: 80.78 | L153: 80.78 | N153: =SUMPRODUCT(--(($T$3:$T$793=T153)*($U$3:$U$793>U153))+1)-790 -> 178 | O153: =SUMPRODUCT(--(($R$3:$R$793=R153)*($S$3:$S$793>S153))+1)-790 -> 178 | P153: TRUE | R153: 小学体育与健康 | S153: 78.64 | T153: 小学体育与健康 | U153: 78.64 | V153: 78.64
A154: 58 | B154: 陈启琴 | C154: 20250505015619 | D154: 小学 | E154: 体育与健康 | F154: 79 | G154: 53 | H154: 是 | I154: 6 | J154: 7 | K154: 84.26 | L154: 84.26 | N154: =SUMPRODUCT(--(($T$3:$T$793=T154)*($U$3:$U$793>U154))+1)-790 -> 84 | O154: =SUMPRODUCT(--(($R$3:$R$793=R154)*($S$3:$S$793>S154))+1)-790 -> 84 | P154: TRUE | R154: 小学体育与健康 | S154: 81.63 | T154: 小学体育与健康 | U154: 81.63 | V154: 81.63
A155: 16 | B155: 刘依依 | C155: 20250505015017 | D155: 小学 | E155: 体育与健康 | F155: 82.5 | G155: 15 | H155: 是 | I155: 6 | J155: 8 | K155: 87.38 | L155: 87.38 | N155: =SUMPRODUCT(--(($T$3:$T$793=T155)*($U$3:$U$793>U155))+1)-790 -> 9 | O155: =SUMPRODUCT(--(($R$3:$R$793=R155)*($S$3:$S$793>S155))+1)-790 -> 9 | P155: TRUE | R155: 小学体育与健康 | S155: 84.94 | T155: 小学体育与健康 | U155: 84.94 | V155: 84.94
A156: 173 | B156: 王冯 | C156: 20250505013827 | D156: 小学 | E156: 体育与健康 | F156: 74.5 | G156: 172 | H156: 是 | I156: 6 | J156: 9 | K156: 83.32 | L156: 83.32 | N156: =SUMPRODUCT(--(($T$3:$T$793=T156)*($U$3:$U$793>U156))+1)-790 -> 169 | O156: =SUMPRODUCT(--(($R$3:$R$793=R156)*($S$3:$S$793>S156))+1)-790 -> 169 | P156: TRUE | R156: 小学体育与健康 | S156: 78.91 | T156: 小学体育与健康 | U156: 78.91 | V156: 78.91
A157: 95 | B157: 罗官琴 | C157: 20250505014807 | D157: 小学 | E157: 体育与健康 | F157: 77 | G157: 91 | H157: 是 | I157: 6 | J157: 10 | K157: 81.74 | L157: 81.74 | N157: =SUMPRODUCT(--(($T$3:$T$793=T157)*($U$3:$U$793>U157))+1)-790 -> 154 | O157: =SUMPRODUCT(--(($R$3:$R$793=R157)*($S$3:$S$793>S157))+1)-790 -> 154 | P157: TRUE | R157: 小学体育与健康 | S157: 79.37 | T157: 小学体育与健康 | U157: 79.37 | V157: 79.37
A158: 6 | B158: 陈雪 | C158: 20250505012418 | D158: 小学 | E158: 体育与健康 | F158: 85.5 | G158: 6 | H158: 是 | I158: 6 | J158: 11 | K158: 84.38 | L158: 84.38 | N158: =SUMPRODUCT(--(($T$3:$T$793=T158)*($U$3:$U$793>U158))+1)-790 -> 9 | O158: =SUMPRODUCT(--(($R$3:$R$793=R158)*($S$3:$S$793>S158))+1)-790 -> 9 | P158: TRUE | R158: 小学体育与健康 | S158: 84.94 | T158: 小学体育与健康 | U158: 84.94 | V158: 84.94
A159: 100 | B159: 向成念 | C159: 20250505012709 | D159: 小学 | E159: 体育与健康 | F159: 76.75 | G159: 99 | H159: 是 | I159: 6 | J159: 12 | K159: 86.32 | L159: 86.32 | N159: =SUMPRODUCT(--(($T$3:$T$793=T159)*($U$3:$U$793>U159))+1)-790 -> 88 | O159: =SUMPRODUCT(--(($R$3:$R$793=R159)*($S$3:$S$793>S159))+1)-790 -> 88 | P159: TRUE | R159: 小学体育与健康 | S159: 81.535 | T159: 小学体育与健康 | U159: 81.535 | V159: 81.535
A160: 213 | B160: 冉革林 | C160: 20250505015102 | D160: 小学 | E160: 体育与健康 | F160: 73.5 | G160: 205 | H160: 是 | I160: 6 | J160: 13 | K160: 83 | L160: 83 | N160: =SUMPRODUCT(--(($T$3:$T$793=T160)*($U$3:$U$793>U160))+1)-790 -> 188 | O160: =SUMPRODUCT(--(($R$3:$R$793=R160)*($S$3:$S$793>S160))+1)-790 -> 188 | P160: TRUE | R160: 小学体育与健康 | S160: 78.25 | T160: 小学体育与健康 | U160: 78.25 | V160: 78.25
A161: 181 | B161: 杨云龙 | C161: 20250505012730 | D161: 小学 | E161: 体育与健康 | F161: 74.25 | G161: 178 | H161: 是 | I161: 6 | J161: 14 | K161: 86.7 | L161: 86.7 | N161: =SUMPRODUCT(--(($T$3:$T$793=T161)*($U$3:$U$793>U161))+1)-790 -> 121 | O161: =SUMPRODUCT(--(($R$3:$R$793=R161)*($S$3:$S$793>S161))+1)-790 -> 121 | P161: TRUE | R161: 小学体育与健康 | S161: 80.475 | T161: 小学体育与健康 | U161: 80.475 | V161: 80.475
A162: 165 | B162: 黄有鹏 | C162: 20250505014208 | D162: 小学 | E162: 体育与健康 | F162: 75 | G162: 159 | H162: 是 | I162: 6 | J162: 15 | K162: 86.1 | L162: 86.1 | N162: =SUMPRODUCT(--(($T$3:$T$793=T162)*($U$3:$U$793>U162))+1)-790 -> 116 | O162: =SUMPRODUCT(--(($R$3:$R$793=R162)*($S$3:$S$793>S162))+1)-790 -> 116 | P162: TRUE | R162: 小学体育与健康 | S162: 80.55 | T162: 小学体育与健康 | U162: 80.55 | V162: 80.55
A163: 245 | B163: 邓彩鹏 | C163: 20250505018001 | D163: 小学 | E163: 体育与健康 | F163: 72.75 | G163: 238 | H163: 是 | I163: 6 | J163: 16 | K163: 85.52 | L163: 85.52 | N163: =SUMPRODUCT(--(($T$3:$T$793=T163)*($U$3:$U$793>U163))+1)-790 -> 166 | O163: =SUMPRODUCT(--(($R$3:$R$793=R163)*($S$3:$S$793>S163))+1)-790 -> 166 | P163: TRUE | R163: 小学体育与健康 | S163: 79.135 | T163: 小学体育与健康 | U163: 79.135 | V163: 79.135
A164: 11 | B164: 赵光富 | C164: 20250505014025 | D164: 小学 | E164: 体育与健康 | F164: 83 | G164: 11 | H164: 是 | I164: 6 | J164: 17 | K164: 84.52 | L164: 84.52 | N164: =SUMPRODUCT(--(($T$3:$T$793=T164)*($U$3:$U$793>U164))+1)-790 -> 22 | O164: =SUMPRODUCT(--(($R$3:$R$793=R164)*($S$3:$S$793>S164))+1)-790 -> 22 | P164: TRUE | R164: 小学体育与健康 | S164: 83.76 | T164: 小学体育与健康 | U164: 83.76 | V164: 83.76
A165: 228 | B165: 彭富德 | C165: 20250505017013 | D165: 小学 | E165: 体育与健康 | F165: 73.25 | G165: 219 | H165: 是 | I165: 6 | J165: 18 | K165: 83.54 | L165: 83.54 | N165: =SUMPRODUCT(--(($T$3:$T$793=T165)*($U$3:$U$793>U165))+1)-790 -> 183 | O165: =SUMPRODUCT(--(($R$3:$R$793=R165)*($S$3:$S$793>S165))+1)-790 -> 183 | P165: TRUE | R165: 小学体育与健康 | S165: 78.395 | T165: 小学体育与健康 | U165: 78.395 | V165: 78.395
A166: 197 | B166: 吴邦云 | C166: 20250505017914 | D166: 小学 | E166: 体育与健康 | F166: 74 | G166: 185 | H166: 是 | I166: 6 | J166: 20 | K166: 82.88 | L166: 82.88 | N166: =SUMPRODUCT(--(($T$3:$T$793=T166)*($U$3:$U$793>U166))+1)-790 -> 181 | O166: =SUMPRODUCT(--(($R$3:$R$793=R166)*($S$3:$S$793>S166))+1)-790 -> 181 | P166: TRUE | R166: 小学体育与健康 | S166: 78.44 | T166: 小学体育与健康 | U166: 78.44 | V166: 78.44
A167: 217 | B167: 罗承意 | C167: 20250505016725 | D167: 小学 | E167: 体育与健康 | F167: 73.5 | G167: 205 | H167: 是 | I167: 6 | J167: 21 | K167: 86.74 | L167: 86.74 | N167: =SUMPRODUCT(--(($T$3:$T$793=T167)*($U$3:$U$793>U167))+1)-790 -> 130 | O167: =SUMPRODUCT(--(($R$3:$R$793=R167)*($S$3:$S$793>S167))+1)-790 -> 130 | P167: TRUE | R167: 小学体育与健康 | S167: 80.12 | T167: 小学体育与健康 | U167: 80.12 | V167: 80.12
A168: 15 | B168: 喻勐 | C168: 20250505014525 | D168: 小学 | E168: 体育与健康 | F168: 82.5 | G168: 15 | H168: 是 | I168: 6 | J168: 22 | K168: 84.08 | L168: 84.08 | N168: =SUMPRODUCT(--(($T$3:$T$793=T168)*($U$3:$U$793>U168))+1)-790 -> 29 | O168: =SUMPRODUCT(--(($R$3:$R$793=R168)*($S$3:$S$793>S168))+1)-790 -> 29 | P168: TRUE | R168: 小学体育与健康 | S168: 83.29 | T168: 小学体育与健康 | U168: 83.29 | V168: 83.29
A169: 207 | B169: 冯麒 | C169: 20250505012329 | D169: 小学 | E169: 体育与健康 | F169: 73.5 | G169: 205 | H169: 是 | I169: 6 | J169: 23 | K169: 85.8 | L169: 85.8 | N169: =SUMPRODUCT(--(($T$3:$T$793=T169)*($U$3:$U$793>U169))+1)-790 -> 147 | O169: =SUMPRODUCT(--(($R$3:$R$793=R169)*($S$3:$S$793>S169))+1)-790 -> 147 | P169: TRUE | R169: 小学体育与健康 | S169: 79.65 | T169: 小学体育与健康 | U169: 79.65 | V169: 79.65
A170: 20 | B170: 赵愿 | C170: 20250505014625 | D170: 小学 | E170: 体育与健康 | F170: 82 | G170: 20 | H170: 是 | I170: 6 | J170: 24 | K170: 85.44 | L170: 85.44 | N170: =SUMPRODUCT(--(($T$3:$T$793=T170)*($U$3:$U$793>U170))+1)-790 -> 23 | O170: =SUMPRODUCT(--(($R$3:$R$793=R170)*($S$3:$S$793>S170))+1)-790 -> 23 | P170: TRUE | R170: 小学体育与健康 | S170: 83.72 | T170: 小学体育与健康 | U170: 83.72 | V170: 83.72
A171: 40 | B171: 苏银辉 | C171: 20250505017428 | D171: 小学 | E171: 体育与健康 | F171: 79.75 | G171: 39 | H171: 是 | I171: 6 | J171: 25 | K171: 86.66 | L171: 86.66 | N171: =SUMPRODUCT(--(($T$3:$T$793=T171)*($U$3:$U$793>U171))+1)-790 -> 32 | O171: =SUMPRODUCT(--(($R$3:$R$793=R171)*($S$3:$S$793>S171))+1)-790 -> 32 | P171: TRUE | R171: 小学体育与健康 | S171: 83.205 | T171: 小学体育与健康 | U171: 83.205 | V171: 83.205
A172: 178 | B172: 田应艳 | C172: 20250505012117 | D172: 小学 | E172: 体育与健康 | F172: 74.25 | G172: 178 | H172: 是 | I172: 6 | J172: 26 | K172: 85.6 | L172: 85.6 | N172: =SUMPRODUCT(--(($T$3:$T$793=T172)*($U$3:$U$793>U172))+1)-790 -> 139 | O172: =SUMPRODUCT(--(($R$3:$R$793=R172)*($S$3:$S$793>S172))+1)-790 -> 139 | P172: TRUE | R172: 小学体育与健康 | S172: 79.925 | T172: 小学体育与健康 | U172: 79.925 | V172: 79.925
A173: 52 | B173: 万娟 | C173: 20250505016520 | D173: 小学 | E173: 体育与健康 | F173: 79.25 | G173: 50 | H173: 是 | I173: 6 | J173: 27 | K173: 86.76 | L173: 86.76 | N173: =SUMPRODUCT(--(($T$3:$T$793=T173)*($U$3:$U$793>U173))+1)-790 -> 37 | O173: =SUMPRODUCT(--(($R$3:$R$793=R173)*($S$3:$S$793>S173))+1)-790 -> 37 | P173: TRUE | R173: 小学体育与健康 | S173: 83.005 | T173: 小学体育与健康 | U173: 83.005 | V173: 83.005
A174: 209 | B174: 何静谊 | C174: 20250505013508 | D174: 小学 | E174: 体育与健康 | F174: 73.5 | G174: 205 | H174: 是 | I174: 6 | J174: 28 | K174: 87 | L174: 87 | N174: =SUMPRODUCT(--(($T$3:$T$793=T174)*($U$3:$U$793>U174))+1)-790 -> 127 | O174: =SUMPRODUCT(--(($R$3:$R$793=R174)*($S$3:$S$793>S174))+1)-790 -> 127 | P174: TRUE | R174: 小学体育与健康 | S174: 80.25 | T174: 小学体育与健康 | U174: 80.25 | V174: 80.25
A175: 201 | B175: 严金泽 | C175: 20250505015130 | D175: 小学 | E175: 体育与健康 | F175: 73.75 | G175: 198 | H175: 是 | I175: 6 | J175: 29 | K175: 87.2 | L175: 87.2 | N175: =SUMPRODUCT(--(($T$3:$T$793=T175)*($U$3:$U$793>U175))+1)-790 -> 121 | O175: =SUMPRODUCT(--(($R$3:$R$793=R175)*($S$3:$S$793>S175))+1)-790 -> 121 | P175: TRUE | R175: 小学体育与健康 | S175: 80.475 | T175: 小学体育与健康 | U175: 80.475 | V175: 80.475
A176: 212 | B176: 欧清梅 | C176: 20250505014706 | D176: 小学 | E176: 体育与健康 | F176: 73.5 | G176: 205 | H176: 是 | I176: 6 | J176: 30 | K176: 83.86 | L176: 83.86 | N176: =SUMPRODUCT(--(($T$3:$T$793=T176)*($U$3:$U$793>U176))+1)-790 -> 177 | O176: =SUMPRODUCT(--(($R$3:$R$793=R176)*($S$3:$S$793>S176))+1)-790 -> 177 | P176: TRUE | R176: 小学体育与健康 | S176: 78.68 | T176: 小学体育与健康 | U176: 78.68 | V176: 78.68
A177: 62 | B177: 覃小凤 | C177: 20250505013510 | D177: 小学 | E177: 体育与健康 | F177: 78.5 | G177: 61 | H177: 是 | I177: 7 | J177: 1 | K177: 83.6 | L177: 83.6 | N177: =SUMPRODUCT(--(($T$3:$T$793=T177)*($U$3:$U$793>U177))+1)-790 -> 99 | O177: =SUMPRODUCT(--(($R$3:$R$793=R177)*($S$3:$S$793>S177))+1)-790 -> 99 | P177: TRUE | R177: 小学体育与健康 | S177: 81.05 | T177: 小学体育与健康 | U177: 81.05 | V177: 81.05
A178: 127 | B178: 张义文 | C178: 20250505015016 | D178: 小学 | E178: 体育与健康 | F178: 76 | G178: 120 | H178: 是 | I178: 7 | J178: 2 | K178: 86.12 | L178: 86.12 | N178: =SUMPRODUCT(--(($T$3:$T$793=T178)*($U$3:$U$793>U178))+1)-790 -> 98 | O178: =SUMPRODUCT(--(($R$3:$R$793=R178)*($S$3:$S$793>S178))+1)-790 -> 98 | P178: TRUE | R178: 小学体育与健康 | S178: 81.06 | T178: 小学体育与健康 | U178: 81.06 | V178: 81.06
A179: 75 | B179: 马富克 | C179: 20250505014027 | D179: 小学 | E179: 体育与健康 | F179: 78 | G179: 72 | H179: 是 | I179: 7 | J179: 3 | K179: 87.86 | L179: 87.86 | N179: =SUMPRODUCT(--(($T$3:$T$793=T179)*($U$3:$U$793>U179))+1)-790 -> 40 | O179: =SUMPRODUCT(--(($R$3:$R$793=R179)*($S$3:$S$793>S179))+1)-790 -> 40 | P179: TRUE | R179: 小学体育与健康 | S179: 82.93 | T179: 小学体育与健康 | U179: 82.93 | V179: 82.93
A180: 230 | B180: 龙小理 | C180: 20250505012409 | D180: 小学 | E180: 体育与健康 | F180: 73 | G180: 230 | H180: 是 | I180: 7 | J180: 4 | K180: 80.36 | L180: 80.36 | N180: =SUMPRODUCT(--(($T$3:$T$793=T180)*($U$3:$U$793>U180))+1)-790 -> 222 | O180: =SUMPRODUCT(--(($R$3:$R$793=R180)*($S$3:$S$793>S180))+1)-790 -> 222 | P180: TRUE | R180: 小学体育与健康 | S180: 76.68 | T180: 小学体育与健康 | U180: 76.68 | V180: 76.68
A181: 2 | B181: 罗堞 | C181: 20250505011402 | D181: 小学 | E181: 体育与健康 | F181: 87 | G181: 2 | H181: 是 | I181: 7 | J181: 5 | K181: 86.04 | L181: 86.04 | N181: =SUMPRODUCT(--(($T$3:$T$793=T181)*($U$3:$U$793>U181))+1)-790 -> 2 | O181: =SUMPRODUCT(--(($R$3:$R$793=R181)*($S$3:$S$793>S181))+1)-790 -> 2 | P181: TRUE | R181: 小学体育与健康 | S181: 86.52 | T181: 小学体育与健康 | U181: 86.52 | V181: 86.52
A182: 244 | B182: 张园 | C182: 20250505017201 | D182: 小学 | E182: 体育与健康 | F182: 72.75 | G182: 238 | H182: 是 | I182: 7 | J182: 6 | K182: 87.48 | L182: 87.48 | N182: =SUMPRODUCT(--(($T$3:$T$793=T182)*($U$3:$U$793>U182))+1)-790 -> 131 | O182: =SUMPRODUCT(--(($R$3:$R$793=R182)*($S$3:$S$793>S182))+1)-790 -> 131 | P182: TRUE | R182: 小学体育与健康 | S182: 80.115 | T182: 小学体育与健康 | U182: 80.115 | V182: 80.115
A183: 185 | B183: 胡水树 | C183: 20250505011703 | D183: 小学 | E183: 体育与健康 | F183: 74 | G183: 185 | H183: 是 | I183: 7 | J183: 7 | K183: 80.76 | L183: 80.76 | N183: =SUMPRODUCT(--(($T$3:$T$793=T183)*($U$3:$U$793>U183))+1)-790 -> 207 | O183: =SUMPRODUCT(--(($R$3:$R$793=R183)*($S$3:$S$793>S183))+1)-790 -> 207 | P183: TRUE | R183: 小学体育与健康 | S183: 77.38 | T183: 小学体育与健康 | U183: 77.38 | V183: 77.38
A184: 74 | B184: 谢龙 | C184: 20250505013514 | D184: 小学 | E184: 体育与健康 | F184: 78 | G184: 72 | H184: 是 | I184: 7 | J184: 8 | K184: 86.58 | L184: 86.58 | N184: =SUMPRODUCT(--(($T$3:$T$793=T184)*($U$3:$U$793>U184))+1)-790 -> 57 | O184: =SUMPRODUCT(--(($R$3:$R$793=R184)*($S$3:$S$793>S184))+1)-790 -> 57 | P184: TRUE | R184: 小学体育与健康 | S184: 82.29 | T184: 小学体育与健康 | U184: 82.29 | V184: 82.29
A185: 179 | B185: 李云飞 | C185: 20250505012230 | D185: 小学 | E185: 体育与健康 | F185: 74.25 | G185: 178 | H185: 是 | I185: 7 | J185: 9 | K185: 85.38 | L185: 85.38 | N185: =SUMPRODUCT(--(($T$3:$T$793=T185)*($U$3:$U$793>U185))+1)-790 -> 140 | O185: =SUMPRODUCT(--(($R$3:$R$793=R185)*($S$3:$S$793>S185))+1)-790 -> 140 | P185: TRUE | R185: 小学体育与健康 | S185: 79.815 | T185: 小学体育与健康 | U185: 79.815 | V185: 79.815
A186: 202 | B186: 李清云 | C186: 20250505015814 | D186: 小学 | E186: 体育与健康 | F186: 73.75 | G186: 198 | H186: 是 | I186: 7 | J186: 10 | K186: 84.70 | L186: 84.70 | N186: =SUMPRODUCT(--(($T$3:$T$793=T186)*($U$3:$U$793>U186))+1)-790 -> 162 | O186: =SUMPRODUCT(--(($R$3:$R$793=R186)*($S$3:$S$793>S186))+1)-790 -> 162 | P186: TRUE | R186: 小学体育与健康 | S186: 79.225 | T186: 小学体育与健康 | U186: 79.225 | V186: 79.225
A187: 87 | B187: 丁雪 | C187: 20250505016523 | D187: 小学 | E187: 体育与健康 | F187: 77.5 | G187: 81 | H187: 是 | I187: 7 | J187: 11 | K187: 88.06 | L187: 88.06 | N187: =SUMPRODUCT(--(($T$3:$T$793=T187)*($U$3:$U$793>U187))+1)-790 -> 45 | O187: =SUMPRODUCT(--(($R$3:$R$793=R187)*($S$3:$S$793>S187))+1)-790 -> 45 | P187: TRUE | R187: 小学体育与健康 | S187: 82.78 | T187: 小学体育与健康 | U187: 82.78 | V187: 82.78
A188: 150 | B188: 高腾 | C188: 20250505012304 | D188: 小学 | E188: 体育与健康 | F188: 75.25 | G188: 150 | H188: 是 | I188: 7 | J188: 12 | K188: 86.28 | L188: 86.28 | N188: =SUMPRODUCT(--(($T$3:$T$793=T188)*($U$3:$U$793>U188))+1)-790 -> 108 | O188: =SUMPRODUCT(--(($R$3:$R$793=R188)*($S$3:$S$793>S188))+1)-790 -> 108 | P188: TRUE | R188: 小学体育与健康 | S188: 80.765 | T188: 小学体育与健康 | U188: 80.765 | V188: 80.765
A189: 31 | B189: 吴顺妹 | C189: 20250505017806 | D189: 小学 | E189: 体育与健康 | F189: 80.75 | G189: 28 | H189: 是 | I189: 7 | J189: 13 | K189: 84.52 | L189: 84.52 | N189: =SUMPRODUCT(--(($T$3:$T$793=T189)*($U$3:$U$793>U189))+1)-790 -> 46 | O189: =SUMPRODUCT(--(($R$3:$R$793=R189)*($S$3:$S$793>S189))+1)-790 -> 46 | P189: TRUE | R189: 小学体育与健康 | S189: 82.635 | T189: 小学体育与健康 | U189: 82.635 | V189: 82.635
A190: 49 | B190: 徐洋 | C190: 20250505018024 | D190: 小学 | E190: 体育与健康 | F190: 79.5 | G190: 41 | H190: 是 | I190: 7 | J190: 14 | K190: 85.24 | L190: 85.24 | N190: =SUMPRODUCT(--(($T$3:$T$793=T190)*($U$3:$U$793>U190))+1)-790 -> 51 | O190: =SUMPRODUCT(--(($R$3:$R$793=R190)*($S$3:$S$793>S190))+1)-790 -> 51 | P190: TRUE | R190: 小学体育与健康 | S190: 82.37 | T190: 小学体育与健康 | U190: 82.37 | V190: 82.37
A191: 158 | B191: 杨依婷 | C191: 20250505017010 | D191: 小学 | E191: 体育与健康 | F191: 75.25 | G191: 150 | H191: 是 | I191: 7 | J191: 15 | K191: 84.70 | L191: 84.70 | N191: =SUMPRODUCT(--(($T$3:$T$793=T191)*($U$3:$U$793>U191))+1)-790 -> 138 | O191: =SUMPRODUCT(--(($R$3:$R$793=R191)*($S$3:$S$793>S191))+1)-790 -> 138 | P191: TRUE | R191: 小学体育与健康 | S191: 79.975 | T191: 小学体育与健康 | U191: 79.975 | V191: 79.975
A192: 88 | B192: 张荣赛 | C192: 20250505017012 | D192: 小学 | E192: 体育与健康 | F192: 77.5 | G192: 81 | H192: 是 | I192: 7 | J192: 16 | K192: 85.50 | L192: 85.50 | N192: =SUMPRODUCT(--(($T$3:$T$793=T192)*($U$3:$U$793>U192))+1)-790 -> 89 | O192: =SUMPRODUCT(--(($R$3:$R$793=R192)*($S$3:$S$793>S192))+1)-790 -> 89 | P192: TRUE | R192: 小学体育与健康 | S192: 81.5 | T192: 小学体育与健康 | U192: 81.5 | V192: 81.5
A193: 60 | B193: 张会 | C193: 20250505015004 | D193: 小学 | E193: 体育与健康 | F193: 78.75 | G193: 60 | H193: 是 | I193: 7 | J193: 17 | K193: 85.34 | L193: 85.34 | N193: =SUMPRODUCT(--(($T$3:$T$793=T193)*($U$3:$U$793>U193))+1)-790 -> 69 | O193: =SUMPRODUCT(--(($R$3:$R$793=R193)*($S$3:$S$793>S193))+1)-790 -> 69 | P193: TRUE | R193: 小学体育与健康 | S193: 82.045 | T193: 小学体育与健康 | U193: 82.045 | V193: 82.045
A194: 117 | B194: 苏建华 | C194: 20250505016309 | D194: 小学 | E194: 体育与健康 | F194: 76.25 | G194: 113 | H194: 是 | I194: 7 | J194: 18 | K194: 88.10 | L194: 88.10 | N194: =SUMPRODUCT(--(($T$3:$T$793=T194)*($U$3:$U$793>U194))+1)-790 -> 61 | O194: =SUMPRODUCT(--(($R$3:$R$793=R194)*($S$3:$S$793>S194))+1)-790 -> 61 | P194: TRUE | R194: 小学体育与健康 | S194: 82.175 | T194: 小学体育与健康 | U194: 82.175 | V194: 82.175
A195: 94 | B195: 万雨 | C195: 20250505013823 | D195: 小学 | E195: 体育与健康 | F195: 77 | G195: 91 | H195: 是 | I195: 7 | J195: 19 | K195: 87.18 | L195: 87.18 | N195: =SUMPRODUCT(--(($T$3:$T$793=T195)*($U$3:$U$793>U195))+1)-790 -> 66 | O195: =SUMPRODUCT(--(($R$3:$R$793=R195)*($S$3:$S$793>S195))+1)-790 -> 66 | P195: =N195=O195 -> TRUE | R195: =D195&E195 -> 小学体育与健康 | S195: =F195*0.5+L195*0.5 -> 82.09 | T195: =D195&E195 -> 小学体育与健康 | U195: =F195*0.5+K195*0.5 -> 82.09 | V195: =F195*0.5+L195*0.5 -> 82.09
A196: 68 | B196: 李忠梅 | C196: 20250505013426 | D196: 小学 | E196: 体育与健康 | F196: 78.25 | G196: 68 | H196: 是 | I196: 7 | J196: 20 | K196: 86.10 | L196: 86.10 | N196: =SUMPRODUCT(--(($T$3:$T$793=T196)*($U$3:$U$793>U196))+1)-790 -> 61 | O196: =SUMPRODUCT(--(($R$3:$R$793=R196)*($S$3:$S$793>S196))+1)-790 -> 61 | P196: TRUE | R196: 小学体育与健康 | S196: 82.175 | T196: 小学体育与健康 | U196: 82.175 | V196: 82.175
A197: 204 | B197: 向美玲 | C197: 20250505017917 | D197: 小学 | E197: 体育与健康 | F197: 73.75 | G197: 198 | H197: 是 | I197: 7 | J197: 21 | K197: 87.46 | L197: 87.46 | N197: =SUMPRODUCT(--(($T$3:$T$793=T197)*($U$3:$U$793>U197))+1)-790 -> 113 | O197: =SUMPRODUCT(--(($R$3:$R$793=R197)*($S$3:$S$793>S197))+1)-790 -> 113 | P197: TRUE | R197: 小学体育与健康 | S197: 80.605 | T197: 小学体育与健康 | U197: 80.605 | V197: 80.605
A198: 57 | B198: 李德俊 | C198: 20250505015430 | D198: 小学 | E198: 体育与健康 | F198: 79 | G198: 53 | H198: 是 | I198: 7 | J198: 22 | K198: 88.6 | L198: 88.6 | N198: =SUMPRODUCT(--(($T$3:$T$793=T198)*($U$3:$U$793>U198))+1)-790 -> 21 | O198: =SUMPRODUCT(--(($R$3:$R$793=R198)*($S$3:$S$793>S198))+1)-790 -> 21 | P198: TRUE | R198: 小学体育与健康 | S198: 83.8 | T198: 小学体育与健康 | U198: 83.8 | V198: 83.8
A199: 167 | B199: 雷国苹 | C199: 20250505015305 | D199: 小学 | E199: 体育与健康 | F199: 75 | G199: 159 | H199: 是 | I199: 7 | J199: 23 | K199: 82.76 | L199: 82.76 | N199: =SUMPRODUCT(--(($T$3:$T$793=T199)*($U$3:$U$793>U199))+1)-790 -> 170 | O199: =SUMPRODUCT(--(($R$3:$R$793=R199)*($S$3:$S$793>S199))+1)-790 -> 170 | P199: TRUE | R199: 小学体育与健康 | S199: 78.88 | T199: 小学体育与健康 | U199: 78.88 | V199: 78.88
A200: 166 | B200: 于杰 | C200: 20250505015212 | D200: 小学 | E200: 体育与健康 | F200: 75 | G200: 159 | H200: 是 | I200: 7 | J200: 24 | K200: 84.14 | L200: 84.14 | N200: =SUMPRODUCT(--(($T$3:$T$793=T200)*($U$3:$U$793>U200))+1)-790 -> 149 | O200: =SUMPRODUCT(--(($R$3:$R$793=R200)*($S$3:$S$793>S200))+1)-790 -> 149 | P200: TRUE | R200: 小学体育与健康 | S200: 79.57 | T200: 小学体育与健康 | U200: 79.57 | V200: 79.57
... 593 more rows
